Workbook

Sheet Sheet1
A1: Table S7. TOP3B eCLIP targets include many genes related to mental disorders.
A2: sheet1: The gene list (left) of TOP3B eCLIP-seq targets identified by two independent replicates (WT-IP_fpkm/WT-Input_fpkm, fold change > 1.5 and WT-IP_fpkm/KO-IP_fpkm, fold change > 1.5). The gene list (right) are overlapped genes between TOP3B eCLIP-seq targets and mental disorder gene lists (Table S5)
A3: sheet2: The normalized read counts of eCLIP-seq for each gene.
A5: TOP3B eCLIP-seq targets
A6: Symbol | B6: Gene_id | C6: Length | D6: WT_eCLIP-seq_Input.rep1 | E6: WT_eCLIP-seq_TOP3B-IP.rep1 | F6: KO_eCLIP-seq_TOP3B-IP.rep1 | G6: WT_eCLIP-seq_Input.rep2 | H6: WT_eCLIP-seq_TOP3B-IP.rep2 | I6: KO_eCLIP-seq_TOP3B-IP.rep2 | J6: WT-IP/WT-Input.rep1 | K6: WT-IP/KO-IP.rep1 | L6: WT-IP/WT-Input.rep2 | M6: WT-IP/KO-IP.rep2 | P6: TOP3B eCLIP targets related to mental disorders
A7: A4GALT | B7: NM_017436 | C7: 2092 | D7: 2.058269236 | E7: 8.373130981 | F7: 3.274435342 | G7: 4.399228932 | H7: 10.19805388 | I7: 0 | J7: 4.066069086 | K7: 2.556341404 | L7: 2.317618932 | M7: 10198.05388 | P7: autism related genes (109) | Q7: schizophrenia related genes (59)
A8: AATK | B8: NM_001080395 | C8: 5460 | D8: 0.381208085 | E8: 1.256935056 | F8: 0.762365892 | G8: 1.882099187 | H8: 4.155217724 | I8: 1.525452395 | J8: 3.288614515 | K8: 1.64656958 | L8: 2.206584631 | M8: 2.722140394 | P8: ABCA7 | Q8: NISCH
A9: ABCA2 | B9: NM_212533 | C9: 8146 | D9: 6.710704011 | E9: 25.34574278 | F9: 14.290784 | G9: 10.45953722 | H9: 54.18271351 | I9: 23.37227307 | J9: 3.776349901 | K9: 1.773448492 | L9: 5.179725703 | M9: 2.318148312 | P9: AHDC1 | Q9: ZDHHC5
A10: ABCA7 | B10: NM_019112 | C10: 6814 | D10: 8.433561017 | E10: 31.40153006 | F10: 5.344983262 | G10: 14.59125041 | H10: 66.75944383 | I10: 17.23010871 | J10: 3.722959618 | K10: 5.873854915 | L10: 4.574993024 | M10: 3.874355676 | P10: ANKRD11 | Q10: AMBRA1
A11: ABCC10 | B11: NM_001198934 | C11: 5043 | D11: 4.187776467 | E11: 8.155755367 | F11: 3.825212395 | G11: 3.976094203 | H11: 10.9728217 | I11: 1.611284185 | J11: 1.947049558 | K11: 2.131547997 | L11: 2.759004726 | M11: 6.805761541 | P11: AP2S1 | Q11: ATPAF2
A12: ABCC3 | B12: NM_003786 | C12: 5693 | D12: 7.446490739 | E12: 11.26074574 | F12: 3.527095951 | G12: 10.50398936 | H12: 17.08760913 | I12: 7.841356916 | J12: 1.512018764 | K12: 3.191734549 | L12: 1.626618414 | M12: 2.178886949 | P12: BIRC6 | Q12: CHRM4
A13: ABCD1 | B13: NM_000033 | C13: 3669 | D13: 0.331511102 | E13: 1.691776933 | F13: 0.552507605 | G13: 1.10422325 | H13: 3.764400064 | I13: 0 | J13: 5.087881045 | K13: 3.056465562 | L13: 3.406008753 | M13: 3764.400064 | P13: BRD4 | Q13: DOC2A
A14: ABL1 | B14: NM_007313 | C14: 5881 | D14: 5.301718223 | E14: 19.21580485 | F14: 6.712927024 | G14: 5.260972698 | H14: 20.16985816 | I14: 9.643270735 | J14: 3.623765028 | K14: 2.86208128 | L14: 3.833136224 | M14: 2.091382409 | P14: BTAF1 | Q14: EP300
A15: ABR | B15: NM_001322841 | C15: 6010 | D15: 3.934627161 | E15: 9.985408993 | F15: 2.713390346 | G15: 4.505578303 | H15: 11.0915224 | I15: 4.071887767 | J15: 2.537183677 | K15: 3.678693084 | L15: 2.461184884 | M15: 2.723257559 | P15: CACNA1H | Q15: PRR12
A16: ABTB2 | B16: NM_145804 | C16: 4905 | D16: 1.403982167 | E16: 4.473604641 | F16: 2.064548673 | G16: 4.562877037 | H16: 12.37788774 | I16: 4.131000951 | J16: 3.184100657 | K16: 2.165819039 | L16: 2.712143127 | M16: 2.995615898 | P16: CASZ1 | Q16: SCAF1
A17: ACACA | B17: NM_198834 | C17: 10013 | D17: 10.25708409 | E17: 31.22204561 | F17: 10.03362579 | G17: 4.479739128 | H17: 11.87611894 | I17: 4.461245682 | J17: 3.043652727 | K17: 3.111430985 | L17: 2.650482119 | M17: 2.661466846 | P17: CC2D1A | Q17: SLC45A1
A18: ACOX3 | B18: NM_003501 | C18: 2872 | D18: 2.113393875 | E18: 4.977248891 | F18: 1.408784792 | G18: 2.153045559 | H18: 4.79918795 | I18: 1.409441042 | J18: 2.353983782 | K18: 3.530502612 | L18: 2.227988136 | M18: 3.402615074 | P18: CCDC88C | Q18: SMG6
A19: ACTR1A | B19: NM_005736 | C19: 2830 | D19: 10.57070089 | E19: 20.41409019 | F19: 10.57032769 | G19: 4.804699593 | H19: 8.641524729 | I19: 2.819920371 | J19: 1.931012843 | K19: 1.931081014 | L19: 1.798182463 | M19: 3.063370671 | P19: CD276 | Q19: SREBF1
A20: ADAMTS7 | B20: NM_014272 | C20: 5520 | D20: 2.27325533 | E20: 5.181027198 | F20: 2.016439324 | G20: 2.413554071 | H20: 10.49077334 | I20: 5.135094446 | J20: 2.278120284 | K20: 2.568120457 | L20: 4.344807791 | M20: 2.042558495 | P20: CDC42BPB | Q20: TAOK2
A21: ADAMTSL5 | B21: NM_001367197 | C21: 2543 | D21: 2.97639131 | E21: 8.92898889 | F21: 5.137547749 | G21: 7.997151489 | H21: 13.51770433 | I21: 1.417747344 | J21: 2.998930258 | K21: 1.737648325 | L21: 1.690103563 | M21: 9.527915162 | P21: CDK13 | Q21: FURIN
A22: ADAT1 | B22: NM_012091 | C22: 4984 | D22: 1.776285502 | E22: 3.042533407 | F22: 1.412822747 | G22: 0.949115212 | H22: 8.250959087 | I22: 0.807718668 | J22: 1.711899075 | K22: 2.151990703 | L22: 8.684166912 | M22: 10.2025085 | P22: CHD8 | Q22: MAD1L1
A23: ADCY7 | B23: NM_001114 | C23: 6270 | D23: 1.780610666 | E23: 3.261631346 | F23: 2.143231109 | G23: 1.705458503 | H23: 4.942082429 | I23: 0 | J23: 1.830720599 | K23: 1.52111931 | L23: 2.896104664 | M23: 4942.082429 | P23: CIC | Q23: PITPNM2
A24: ADCY9 | B24: NM_001116 | C24: 7979 | D24: 1.886534782 | E24: 4.936728916 | F24: 2.620055902 | G24: 3.141649452 | H24: 11.06713961 | I24: 1.048462993 | J24: 2.615437322 | K24: 1.883488602 | L24: 3.521595322 | M24: 10.54552632 | P24: CLTCL1 | Q24: ARVCF
A25: ADGRA2 | B25: NM_032777 | C25: 6944 | D25: 1.744737247 | E25: 5.610611449 | F25: 3.019698071 | G25: 3.392085066 | H25: 5.486064322 | I25: 3.35664593 | J25: 3.213892273 | K25: 1.857389026 | L25: 1.616836659 | M25: 1.633901977 | P25: DEPDC5 | Q25: BCL9
A26: ADGRB2 | B26: NM_001364857 | C26: 5708 | D26: 2.902948329 | E26: 17.00452015 | F26: 6.140575755 | G26: 6.387458514 | H26: 37.52479589 | I26: 16.38217369 | J26: 5.855655206 | K26: 2.768755256 | L26: 5.873841993 | M26: 2.290447297 | P26: DHX30 | Q26: DGCR2
A27: ADGRL1 | B27: NM_001008701 | C27: 7835 | D27: 8.915944017 | E27: 38.77988206 | F27: 19.00376963 | G27: 9.753777398 | H27: 50.5581837 | I27: 11.85814621 | J27: 4.349010377 | K27: 2.040534182 | L27: 5.182915164 | M27: 4.2632229 | P27: DIP2A | Q27: KALRN
A28: ADIRF | B28: NM_006829 | C28: 627 | D28: 28.92372879 | E28: 47.54089889 | F28: 7.531708915 | G28: 19.83317219 | H28: 41.05028244 | I28: 6.028021931 | J28: 1.643607421 | K28: 6.311261915 | L28: 2.069674602 | M28: 6.808779751 | P28: DIP2C | Q28: MAN2A2
A29: AGAP3 | B29: NM_031946 | C29: 3494 | D29: 5.13439374 | E29: 20.55640867 | F29: 6.845487316 | G29: 4.023539015 | H29: 18.65478606 | I29: 10.27268078 | J29: 4.002888524 | K29: 3.002475243 | L29: 4.635260334 | M29: 1.815784086 | P29: DLL1 | Q29: NOTCH2
A30: AGPAT2 | B30: NM_006412 | C30: 1546 | D30: 7.585913674 | E30: 20.32987754 | F30: 8.50104884 | G30: 10.76216213 | H30: 21.38433523 | I30: 5.233662565 | J30: 2.679597846 | K30: 2.39117393 | L30: 1.98680787 | M30: 4.085141108 | P30: DMWD | Q30: RAPGEF6
A31: AGRN | B31: NM_001305275 | C31: 7392 | D31: 12.86973759 | E31: 71.84019293 | F31: 15.05972599 | G31: 30.12796642 | H31: 91.59202193 | I31: 21.36643954 | J31: 5.581668683 | K31: 4.770035188 | L31: 3.039998806 | M31: 4.286523042 | P31: DST | Q31: ZDHHC8
A32: AGTRAP | B32: NM_001040196 | C32: 1259 | D32: 6.110947932 | E32: 11.36200035 | F32: 1.608029025 | G32: 5.293016194 | H32: 17.52870447 | I32: 0 | J32: 1.858981862 | K32: 7.061401736 | L32: 3.311040962 | M32: 17528.70447 | P32: DYNC1H1 | Q32: ACTR1A
A33: AHDC1 | B33: NM_001371928 | C33: 6428 | D33: 2.961465254 | E33: 17.54913761 | F33: 6.050125564 | G33: 4.417038985 | H33: 20.82592528 | I33: 13.37965311 | J33: 5.923829009 | K33: 2.900144349 | L33: 4.713839183 | M33: 1.556420685 | P33: DYRK1A | Q33: MFHAS1
A34: AHNAK | B34: NM_024060 | C34: 1036 | D34: 10.24427822 | E34: 16.87326081 | F34: 5.835075621 | G34: 7.062707673 | H34: 13.39831057 | I34: 4.107881743 | J34: 1.646930464 | K34: 2.891199824 | L34: 1.896781576 | M34: 3.260816789 | P34: DLX2 | Q34: EDC4
A35: AHNAK2 | B35: NM_138420 | C35: 18335 | D35: 1.370313733 | E35: 2.394395108 | F35: 1.049752913 | G35: 2.961943103 | H35: 11.14268215 | I35: 0.884413525 | J35: 1.746059308 | K35: 2.278742298 | L35: 3.760680432 | M35: 12.58472096 | P35: EHMT1 | Q35: ESRP2
A36: AKAP13 | B36: NM_006738 | C36: 13339 | D36: 4.405052354 | E36: 9.086536354 | F36: 4.632688012 | G36: 4.571052143 | H36: 9.313216988 | I36: 4.862578516 | J36: 2.062285153 | K36: 1.960972843 | L36: 2.036988358 | M36: 1.91488982 | P36: EP300 | Q36: KDM3B
A37: AKNA | B37: NM_001317950 | C37: 7454 | D37: 1.55621098 | E37: 7.548499638 | F37: 1.667329278 | G37: 5.139732956 | H37: 16.15564478 | I37: 0 | J37: 4.847448249 | K37: 4.524586206 | L37: 3.142673412 | M37: 16155.64478 | P37: EP400 | Q37: PSMB10
A38: AKT1 | B38: NM_005163 | C38: 2988 | D38: 13.82296982 | E38: 20.82527276 | F38: 10.84110141 | G38: 13.93899373 | H38: 36.46713733 | I38: 20.33562744 | J38: 1.506461098 | K38: 1.920778267 | L38: 2.616008159 | M38: 1.793175267 | P38: EIF4G1 | Q38: PTPRF
A39: AKT2 | B39: NM_001626 | C39: 5250 | D39: 7.869423936 | E39: 21.68217504 | F39: 13.36978416 | G39: 11.36106164 | H39: 30.44843195 | I39: 10.70038613 | J39: 2.754892902 | K39: 1.621608335 | L39: 2.679833371 | M39: 2.845279254 | P39: EPPK1 | Q39: RAI1
A40: ALKBH4 | B40: NM_017621 | C40: 2087 | D40: 1.527291746 | E40: 3.147323319 | F40: 0.954457177 | G40: 0.673205383 | H40: 1.300541376 | I40: 0 | J40: 2.059373367 | K40: 3.294049587 | L40: 1.928998802 | M40: 1300.541376 | P40: FAT1 | Q40: SLC12A4
A41: ALKBH6 | B41: NM_032878 | C41: 977 | D41: 3.315704669 | E41: 5.368579385 | F41: 2.072163103 | G41: 3.410406063 | H41: 8.470530189 | I41: 0 | J41: 1.618648605 | K41: 2.589559585 | L41: 2.483002619 | M41: 8470.530189 | P41: GRID1 | Q41: THAP11
A42: ALOX5 | B42: NM_000698 | C42: 2517 | D42: 0.31497371 | E42: 2.59645109 | F42: 0 | G42: 1.295973282 | H42: 3.218843055 | I42: 0 | J42: 8.217301022 | K42: 2596.45109 | L42: 2.481811383 | M42: 3218.843055 | P42: HCFC1 | Q42: ATP13A1
A43: AMBRA1 | B43: NM_001267782 | C43: 5258 | D43: 4.578906987 | E43: 7.818270208 | F43: 2.098582865 | G43: 1.973558186 | H43: 11.43773279 | I43: 1.526836779 | J43: 1.707080565 | K43: 3.723725478 | L43: 5.792552922 | M43: 7.486226898 | P43: HECTD4 | Q43: BAP1
A44: ANKHD1 | B44: NM_017747 | C44: 8195 | D44: 7.880872899 | E44: 14.79024403 | F44: 4.309651617 | G44: 5.095207825 | H44: 8.053250588 | I44: 1.970947069 | J44: 1.876488522 | K44: 3.431092406 | L44: 1.580243755 | M44: 4.08390809 | P44: HERC2 | Q44: CLDN23
A45: ANKHD1-EIF4EBP3 | B45: NM_020690 | C45: 8349 | D45: 7.954061459 | E45: 14.90618374 | F45: 4.00103649 | G45: 5.131119898 | H45: 8.590616996 | I45: 1.940698285 | J45: 1.87379869 | K45: 3.724649632 | L45: 1.673892498 | M45: 4.424280055 | P45: HIVEP2 | Q45: DPH2
A46: ANKLE1 | B46: NM_152363 | C46: 2962 | D46: 1.006660726 | E46: 3.408029018 | F46: 1.258226758 | G46: 1.035318785 | H46: 3.42890046 | I46: 1.258750876 | J46: 3.382119527 | K46: 2.706445838 | L46: 3.308731357 | M46: 2.721887736 | P46: HIVEP3 | Q46: FGFR1
A47: ANKRD11 | B47: NM_001256183 | C47: 9296 | D47: 6.045646436 | E47: 13.54681563 | F47: 8.698447151 | G47: 10.99237895 | H47: 70.22381589 | I47: 10.87772568 | J47: 2.240384943 | K47: 1.557204199 | L47: 6.387828184 | M47: 6.455150902 | P47: HUWE1 | Q47: HIP1R
A48: ANKRD13D | B48: NM_207354 | C48: 2128 | D48: 4.352047893 | E48: 8.912672122 | F48: 2.838105469 | G48: 4.003685186 | H48: 19.335803 | I48: 7.571678972 | J48: 2.047455562 | K48: 3.13925362 | L48: 4.828295385 | M48: 2.553363621 | P48: INTS1 | Q48: LRP4
A49: ANKRD16 | B49: NM_019046 | C49: 2734 | D49: 0.92448261 | E49: 2.721546314 | F49: 0 | G49: 1.086632174 | H49: 5.248410894 | I49: 1.541372808 | J49: 2.94067796 | K49: 2721.546314 | L49: 4.825538467 | M49: 3.402816016 | P49: IQGAP3 | Q49: MADD
A50: ANKRD33B | B50: NM_001164440 | C50: 9586 | D50: 1.388377654 | E50: 5.670983492 | F50: 1.193042628 | G50: 2.091002343 | H50: 4.433572138 | I50: 0.434004289 | J50: 4.08167173 | K50: 4.749397851 | L50: 2.119295972 | M50: 10.19201937 | P50: KANSL1 | Q50: MAP3K11
A51: ANKRD34A | B51: NM_001039888 | C51: 3607 | D51: 0.448120916 | E51: 0.923529089 | F51: 0.560122035 | G51: 0.658533987 | H51: 9.159611723 | I51: 0 | J51: 2.056303895 | K51: 1.645861384 | L51: 13.88800563 | M51: 9159.611723 | P51: KAT6A | Q51: OVOL1
A52: ANKRD37 | B52: NM_181726 | C52: 780 | D52: 0.858757078 | E52: 1.516915565 | F52: 0 | G52: 0.504739805 | H52: 5.850609056 | I52: 0 | J52: 1.764353681 | K52: 1516.915565 | L52: 11.56841719 | M52: 5850.609056 | P52: KCNQ2 | Q52: PDCD11
A53: ANKRD9 | B53: NM_001348652 | C53: 6498 | D53: 1.66671468 | E53: 8.930076675 | F53: 2.499955585 | G53: 4.506235231 | H53: 14.76084849 | I53: 2.501027586 | J53: 5.35467894 | K53: 3.57066584 | L53: 3.274923037 | M53: 5.899554654 | P53: KDM3B | Q53: PPP1R3B
A54: ANKS6 | B54: NM_173551 | C54: 7190 | D54: 5.021430632 | E54: 13.02186894 | F54: 4.231315291 | G54: 4.775137825 | H54: 17.68073462 | I54: 2.257652933 | J54: 2.592742418 | K54: 3.076771943 | L54: 3.701889532 | M54: 7.827999761 | P54: KDM6B | Q54: RPTOR
A55: ANO8 | B55: NM_020959 | C55: 4178 | D55: 4.973853828 | E55: 10.10615308 | F55: 4.388449423 | G55: 5.961404104 | H55: 36.54186081 | I55: 8.780730473 | J55: 2.03144724 | K55: 2.302373739 | L55: 6.128712542 | M55: 4.161123018 | P55: KMT2C | Q55: SEMA6C
A56: ANXA11 | B56: NM_001278408 | C56: 3072 | D56: 9.696000071 | E56: 20.51289729 | F56: 6.162380711 | G56: 12.17032414 | H56: 32.46703698 | I56: 8.219985857 | J56: 2.115385907 | K56: 3.328189228 | L56: 2.667502451 | M56: 3.949287536 | P56: LRBA | Q56: SNX8
A57: AOC2 | B57: NM_009590 | C57: 2677 | D57: 4.081004281 | E57: 11.92511016 | F57: 4.912114493 | G57: 3.375807846 | H57: 10.29703414 | I57: 1.512023874 | J57: 2.921386 | K57: 2.427199728 | L57: 3.049339675 | M57: 6.805599249 | P57: LZTR1 | Q57: SUFU
A58: AP1G2 | B58: NM_003917 | C58: 2598 | D58: 6.730972917 | E58: 12.60968924 | F58: 7.26612685 | G58: 7.552630099 | H58: 18.75874368 | I58: 0 | J58: 1.873104571 | K58: 1.735168451 | L58: 2.48340777 | M58: 18758.74368 | P58: MBD3 | Q58: SZT2
A59: AP2A1 | B59: NM_014203 | C59: 3423 | D59: 10.01046494 | E59: 18.12466629 | F59: 6.654088252 | G59: 11.29113528 | H59: 28.38206941 | I59: 15.05032736 | J59: 1.810391027 | K59: 2.723429894 | L59: 2.513436893 | M59: 1.885685477 | P59: MBD5 | Q59: ZC3H7B
A60: AP2S1 | B60: NM_001301076 | C60: 918 | D60: 14.85982189 | E60: 22.96648601 | F60: 11.60877433 | G60: 10.37143585 | H60: 18.98102398 | I60: 4.645437933 | J60: 1.545438481 | K60: 1.978202621 | L60: 1.829948554 | M60: 4.085069951 | P60: MBD6 | Q60: FOXO3
A61: AP3D1 | B61: NM_001261826 | C61: 5065 | D61: 13.7479155 | E61: 24.32984265 | F61: 14.41896022 | G61: 15.51051188 | H61: 35.52509224 | I61: 18.17944983 | J61: 1.769582674 | K61: 1.687233687 | L61: 2.290240469 | M61: 1.954027132 | P61: LMX1B | Q61: GNA12
A62: AP4S1 | B62: NM_007077 | C62: 1789 | D62: 0.905231389 | E62: 1.599133948 | F62: 0 | G62: 2.394576146 | H62: 4.625862239 | I62: 2.264297974 | J62: 1.764597836 | K62: 1599.133948 | L62: 1.931001962 | M62: 2.04205464 | P62: MED13 | Q62: IQCE
A63: APBB3 | B63: NM_006051 | C63: 2158 | D63: 3.002257487 | E63: 6.407776232 | F63: 3.752644576 | G63: 2.86741844 | H63: 15.33960894 | I63: 1.877085854 | J63: 2.133608676 | K63: 1.707081239 | L63: 5.347758446 | M63: 8.167682488 | P63: MED13L | Q63: UBE3B
A64: APEH | B64: NM_001640 | C64: 2879 | D64: 8.368768363 | E64: 15.90576709 | F64: 10.27705679 | G64: 7.593797597 | H64: 17.00356096 | I64: 7.343809415 | J64: 1.900383189 | K64: 1.547546138 | L64: 2.238843201 | M64: 2.315044544 | P64: MTHFR | Q64: RANBP10
A65: ARAP1 | B65: NM_001040118 | C65: 5137 | D65: 5.28136451 | E65: 14.20175259 | F65: 2.561678611 | G65: 6.671543448 | H65: 19.33208573 | I65: 3.154249034 | J65: 2.688521885 | K65: 5.541761081 | L65: 2.897258876 | M65: 6.126960351 | P65: MTOR | Q65: SGSM2
A66: ARAP3 | B66: NM_022481 | C66: 5258 | D66: 2.308619907 | E66: 7.158710172 | F66: 2.116119126 | G66: 2.442385918 | H66: 6.290948349 | I66: 0 | J66: 3.099518735 | K66: 3.381345 | L66: 2.574684704 | M66: 6290.948349 | P66: MYO1E | Q66: TMCO6
A67: ARC | B67: NM_015193 | C67: 2950 | D67: 2.19769217 | E67: 5.175769573 | F67: 0 | G67: 3.713614906 | H67: 18.71489246 | I67: 0 | J67: 2.354021924 | K67: 5175.769573 | L67: 5.038178367 | M67: 18714.89246 | P67: MYO9B
A68: ARFGEF2 | B68: NM_006420 | C68: 9031 | D68: 3.912577305 | E68: 6.037113644 | F68: 2.248448678 | G68: 2.114578765 | H68: 3.982837083 | I68: 0.899780184 | J68: 1.542607485 | K68: 2.683819241 | L68: 1.882622925 | M68: 4.42154163 | P68: NAV2
A69: ARHGAP17 | B69: NM_001006634 | C69: 3493 | D69: 2.942638069 | E69: 5.571360557 | F69: 2.307864301 | G69: 2.57734816 | H69: 4.716840911 | I69: 0 | J69: 1.892678524 | K69: 2.41303075 | L69: 1.829404184 | M69: 4716.840911 | P69: NCOR1
A70: ARHGAP21 | B70: NM_020824 | C70: 7381 | D70: 0.395455684 | E70: 1.264005656 | F70: 0.141213053 | G70: 0.33204069 | H70: 5.388596175 | I70: 0 | J70: 3.188264684 | K70: 8.888112795 | L70: 16.17999343 | M70: 5388.596175 | P70: NINL
A71: ARHGAP26 | B71: NM_015071 | C71: 9395 | D71: 4.615204442 | E71: 7.821805508 | F71: 2.479996551 | G71: 4.1068959 | H71: 6.464463074 | I71: 3.020448349 | J71: 1.694423548 | K71: 3.152686974 | L71: 1.573667695 | M71: 2.139524601 | P71: NLGN2
A72: ARHGAP33 | B72: NM_001366178 | C72: 4352 | D72: 2.170384272 | E72: 6.815242198 | F72: 2.325285192 | G72: 1.457869578 | H72: 9.152996238 | I72: 1.033857745 | J72: 3.138662413 | K72: 2.929667532 | L72: 6.274033249 | M72: 8.84469028 | P72: NSD1
A73: ARHGAP35 | B73: NM_004491 | C73: 9289 | D73: 6.150468059 | E73: 19.58166306 | F73: 5.125203144 | G73: 4.873458074 | H73: 23.58817385 | I73: 6.836502009 | J73: 3.183250384 | K73: 3.819915542 | L73: 4.839137703 | M73: 3.449823315 | P73: NUAK1
A74: ARHGAP44 | B74: NM_014859 | C74: 4270 | D74: 1.712171306 | E74: 3.808333735 | F74: 2.140116116 | G74: 2.348080231 | H74: 5.832085698 | I74: 3.806293755 | J74: 2.222973104 | K74: 1.77866754 | L74: 2.482710306 | M74: 1.531819206 | P74: OFD1
A75: ARHGEF10L | B75: NM_018125 | C75: 4625 | D75: 1.531786524 | E75: 5.252095789 | F75: 2.027284118 | G75: 2.224212776 | H75: 9.207495235 | I75: 2.704116675 | J75: 3.426501804 | K75: 2.58942805 | L75: 4.137804409 | M75: 3.403733125 | P75: PER1
A76: ARHGEF11 | B76: NM_198236 | C76: 7261 | D76: 3.644332328 | E76: 8.029028466 | F76: 3.52663447 | G76: 2.141950772 | H76: 4.404716021 | I76: 0.588016975 | J76: 2.202550479 | K76: 2.276037536 | L76: 2.055444333 | M76: 7.478079933 | P76: PER2
A77: ARHGEF19 | B77: NM_153213 | C77: 3322 | D77: 7.272042457 | E77: 16.4126747 | F77: 5.756739296 | G77: 5.128930137 | H77: 53.66884782 | I77: 21.82446288 | J77: 2.256644973 | K77: 2.850541481 | L77: 10.46190618 | M77: 2.459001585 | P77: PITX1
A78: ARHGEF2 | B78: NM_001162383 | C78: 4169 | D78: 3.679357676 | E78: 7.183185324 | F78: 3.146720596 | G78: 4.894260799 | H78: 9.894434612 | I78: 0.968584053 | J78: 1.951762833 | K78: 2.282027615 | L78: 2.021227268 | M78: 10.204824 | P78: PLXNA3
A79: ARHGEF4 | B79: NM_001367493 | C79: 6735 | D79: 3.544259905 | E79: 8.47746765 | F79: 3.599433029 | G79: 4.426600939 | H79: 24.14507169 | I79: 4.431965967 | J79: 2.391211893 | K79: 2.354568904 | L79: 5.453308015 | M79: 5.446708111 | P79: POMGNT1
A80: ARHGEF40 | B80: NM_018071 | C80: 5892 | D80: 0.955013179 | E80: 3.132728876 | F80: 1.193734849 | G80: 0.882035547 | H80: 4.18243572 | I80: 0.682362724 | J80: 3.276867877 | K80: 2.622112244 | L80: 4.73642962 | M80: 6.120374397 | P80: PREX1
A81: ARID1A | B81: NM_006015 | C81: 8595 | D81: 8.067448603 | E81: 25.61079962 | F81: 10.85056176 | G81: 6.65497426 | H81: 16.39140807 | I81: 9.9112182 | J81: 3.174191332 | K81: 2.360102646 | L81: 2.462660976 | M81: 1.653656905 | P81: PRKD2
A82: ARID3A | B82: NM_005224 | C82: 5946 | D82: 2.017392195 | E82: 3.733095303 | F82: 0.720486531 | G82: 2.032681721 | H82: 3.92676297 | I82: 0 | J82: 1.84953911 | K82: 5.174171856 | L82: 1.930864073 | M82: 3926.76297 | P82: PRKDC
A83: ARRDC2 | B83: NM_015683 | C83: 2501 | D83: 3.235561923 | E83: 8.953554691 | F83: 1.213232403 | G83: 2.662383861 | H83: 15.42951653 | I83: 0 | J83: 2.766378306 | K83: 7.373839365 | L83: 5.79320043 | M83: 15429.51653 | P83: PRR12
A84: ARSG | B84: NM_001352901 | C84: 4530 | D84: 2.714846097 | E84: 4.15597155 | F84: 0.678491799 | G84: 1.595678508 | H84: 5.548564906 | I84: 0 | J84: 1.530267696 | K84: 6.116293907 | L84: 3.475067071 | M84: 5548.564906 | P84: PHF12
A85: ARSJ | B85: NM_001354210 | C85: 4507 | D85: 0.605862193 | E85: 1.223123086 | F85: 0 | G85: 0.203501747 | H85: 7.076300943 | I85: 2.597796007 | J85: 2.015487371 | K85: 1223.123086 | L85: 34.60264299 | M85: 2.722915121 | P85: RAB43
A86: ARVCF | B86: NM_001670 | C86: 4056 | D86: 5.116838662 | E86: 17.24899973 | F86: 7.022811223 | G86: 7.665913711 | H86: 18.45430535 | I86: 2.00735636 | J86: 3.370368015 | K86: 2.455789198 | L86: 2.407005745 | M86: 9.18876038 | P86: RAI1
A87: ATG10 | B87: NM_031482 | C87: 3029 | D87: 1.001826719 | E87: 1.573027119 | F87: 0 | G87: 1.374001749 | H87: 3.412645268 | I87: 0 | J87: 1.568593147 | K87: 1573.027119 | L87: 2.481920674 | M87: 3412.645268 | P87: RPS6KA2
A88: ATG2A | B88: NM_015104 | C88: 6318 | D88: 3.24039593 | E88: 8.753946225 | F88: 1.429551417 | G88: 5.078857613 | H88: 12.55272556 | I88: 1.27121033 | J88: 2.70067169 | K88: 6.119281083 | L88: 2.47107823 | M88: 9.866863414 | P88: SBF1
A89: ATG9A | B89: NM_024085 | C89: 3718 | D89: 6.337128569 | E89: 14.67149422 | F89: 6.981277972 | G89: 6.565413054 | H89: 16.8294792 | I89: 6.446936437 | J89: 2.314799086 | K89: 2.101247512 | L89: 2.562963838 | M89: 2.610056623 | P89: SCN8A
A90: ATMIN | B90: NM_015251 | C90: 4881 | D90: 3.162203749 | E90: 5.291527979 | F90: 1.872226648 | G90: 1.858595757 | H90: 9.637438765 | I90: 0.832360698 | J90: 1.672838173 | K90: 2.824819936 | L90: 5.182545039 | M90: 11.56454677 | P90: SETD1B
A91: ATP13A1 | B91: NM_020410 | C91: 3846 | D91: 7.126089372 | E91: 14.06786444 | F91: 3.405726562 | G91: 6.652127571 | H91: 44.97685639 | I91: 9.435197866 | J91: 1.97385829 | K91: 4.129437507 | L91: 6.760257625 | M91: 4.766417261 | P91: SETD5
A92: ATP13A2 | B92: NM_022089 | C92: 3996 | D92: 5.512548768 | E92: 14.28125151 | F92: 6.514721122 | G92: 4.35937529 | H92: 23.21575354 | I92: 11.02952335 | J92: 2.590210427 | K92: 2.19181442 | L92: 5.324255826 | M92: 2.10468287 | P92: SHANK2
A93: ATP2A3 | B93: NM_174953 | C93: 4854 | D93: 3.232763288 | E93: 9.37062942 | F93: 4.766055895 | G93: 4.189887824 | H93: 21.45874368 | I93: 6.219343757 | J93: 2.89774748 | K93: 1.9657058 | L93: 5.120333586 | M93: 3.449768135 | P93: SLC25A39
A94: ATPAF2 | B94: NM_145691 | C94: 1553 | D94: 2.348140033 | E94: 3.9939823 | F94: 0.652187407 | G94: 1.840128777 | H94: 3.554846696 | I94: 0 | J94: 1.700189109 | K94: 6.114603952 | L94: 1.930797422 | M94: 3554.846696 | P94: SLC38A10
A95: B4GALNT4 | B95: NM_178537 | C95: 3750 | D95: 5.861784561 | E95: 21.1217847 | F95: 8.499202918 | G95: 9.784507037 | H95: 42.32908722 | I95: 9.382383628 | J95: 3.60268819 | K95: 2.484856527 | L95: 4.325691766 | M95: 4.511068597 | P95: SLC45A1
A96: BABAM2 | B96: NM_001329114 | C96: 2136 | D96: 2.085322713 | E96: 3.794917726 | F96: 1.895646787 | G96: 1.559912419 | H96: 5.165874841 | I96: 1.896398007 | J96: 1.818950492 | K96: 2.000856328 | L96: 3.309522545 | M96: 2.722610028 | P96: SLC6A8
A97: BAHCC1 | B97: NM_001291324 | C97: 10819 | D97: 4.686866473 | E97: 20.25173835 | F97: 6.390928961 | G97: 3.870255777 | H97: 12.66613388 | I97: 2.712422977 | J97: 4.320033104 | K97: 3.168329697 | L97: 3.271841131 | M97: 4.667954089 | P97: SLC7A5
A98: BAHD1 | B98: NM_014952 | C98: 4779 | D98: 4.060735375 | E98: 10.9149209 | F98: 4.855006274 | G98: 4.254558752 | H98: 9.622254651 | I98: 0.88309836 | J98: 2.687255543 | K98: 2.247715568 | L98: 2.261102528 | M98: 10.88369246 | P98: SMG6
A99: BAMBI | B99: NM_012342 | C99: 1691 | D99: 4.462636401 | E99: 11.61645129 | F99: 4.110176643 | G99: 7.730803615 | H99: 12.80083775 | I99: 2.349645229 | J99: 2.602463607 | K99: 2.825578247 | L99: 1.655608237 | M99: 5.445669807 | P99: SND1
A100: BANF1 | B100: NM_003860 | C100: 731 | D100: 0.702966366 | E100: 4.345971253 | F100: 0.878658994 | G100: 1.239550452 | H100: 4.789170215 | I100: 0 | J100: 6.173549566 | K100: 4.940518181 | L100: 3.86052031 | M100: 4789.170215 | P100: SPEN
A101: BANP | B101: NM_001173543 | C101: 2438 | D101: 1.660862988 | E101: 2.933664302 | F101: 1.245536042 | G101: 2.147644149 | H101: 4.525936911 | I101: 1.661537313 | J101: 1.765286503 | K101: 2.353453252 | L101: 2.106415301 | M101: 2.722306968 | P101: SRCAP
A102: BAP1 | B102: NM_004656 | C102: 3599 | D102: 4.376387542 | E102: 12.49719418 | F102: 7.384842726 | G102: 5.530313245 | H102: 15.65255289 | I102: 7.661663912 | J102: 2.854943516 | K102: 1.692047156 | L102: 2.829807714 | M102: 2.042703826 | P102: SYNJ1
A103: BCAM | B103: NM_005581 | C103: 2409 | D103: 12.38073963 | E103: 28.18594826 | F103: 17.74496602 | G103: 22.12132597 | H103: 49.48124572 | I103: 13.2111044 | J103: 2.276412613 | K103: 1.588301715 | L103: 2.236710814 | M103: 3.745144923 | P103: TANC2
A104: BCAS3 | B104: NM_001353144 | C104: 3652 | D104: 2.818734841 | E104: 5.361871381 | F104: 2.981279814 | G104: 2.039032026 | H104: 9.601463127 | I104: 1.084526188 | J104: 1.901551629 | K104: 1.797910228 | L104: 4.706525684 | M104: 8.844985255 | P104: TAOK2
A105: BCL2L11 | B105: NM_138621 | C105: 5098 | D105: 1.682488808 | E105: 5.283369595 | F105: 1.401977953 | G105: 5.933448161 | H105: 11.46217858 | I105: 5.610491808 | J105: 3.138345542 | K105: 3.765825103 | L105: 1.931464943 | M105: 2.042625913 | P105: TOP3B
A106: BCL2L13 | B106: NM_001270726 | C106: 4961 | D106: 3.34648966 | E106: 5.38235799 | F106: 1.020218157 | G106: 2.686471227 | H106: 6.116551559 | I106: 0 | J106: 1.607878899 | K106: 5.270527118 | L106: 2.275950528 | M106: 6116.551559 | P106: TRAF7
A107: BCL7A | B107: NM_020993 | C107: 3785 | D107: 2.247813189 | E107: 6.554264553 | F107: 2.408236323 | G107: 2.01311986 | H107: 20.0531106 | I107: 5.354034728 | J107: 2.914543807 | K107: 2.720473907 | L107: 9.956264768 | M107: 3.744720925 | P107: TRAPPC9
A108: BCL9 | B108: NM_004326 | C108: 6187 | D108: 4.18531706 | E108: 8.393708239 | F108: 3.923507755 | G108: 2.15238863 | H108: 5.346068056 | I108: 2.616831283 | J108: 2.005034048 | K108: 2.138792624 | L108: 2.482630391 | M108: 2.04217441 | P108: TRIO
A109: BCR | B109: NM_004327 | C109: 6783 | D109: 2.396734523 | E109: 8.157024449 | F109: 2.192032679 | G109: 4.672657032 | H109: 11.94706214 | I109: 2.923956806 | J109: 3.401971474 | K109: 3.719517966 | L109: 2.556255638 | M109: 4.084526006 | P109: TRRAP
A110: BICRA | B110: NM_015711 | C110: 5739 | D110: 2.257820431 | E110: 6.148339615 | F110: 2.292981552 | G110: 3.732300863 | H110: 7.210059752 | I110: 1.411656056 | J110: 2.721924917 | K110: 2.680204472 | L110: 1.931282802 | M110: 5.103903191 | P110: TSC2
A111: BIRC6 | B111: NM_016252 | C111: 15702 | D111: 5.544521059 | E111: 14.24227256 | F111: 5.093014875 | G111: 3.182889942 | H111: 8.608447303 | I111: 3.611718626 | J111: 2.568247854 | K111: 2.795883583 | L111: 2.70375153 | M111: 2.382816985 | P111: UBE3C
A112: BMP4 | B112: NM_001347912 | C112: 1735 | D112: 36.87567007 | E112: 146.4839692 | F112: 55.42796906 | G112: 19.47879594 | H112: 60.41846981 | I112: 30.35226645 | J112: 3.972266718 | K112: 2.642733063 | L112: 3.101596649 | M112: 1.990509651 | P112: USP7
A113: BMP8B | B113: NM_001720 | C113: 4826 | D113: 2.351277897 | E113: 3.757661105 | F113: 1.889301429 | G113: 1.776844697 | H113: 8.581229307 | I113: 2.520201301 | J113: 1.597456283 | K113: 1.987863442 | L113: 4.826759796 | M113: 3.403627193 | P113: WDFY3
A114: BRAT1 | B114: NM_001350626 | C114: 2959 | D114: 7.101834531 | E114: 18.06946123 | F114: 2.219144662 | G114: 6.559281724 | H114: 18.14287351 | I114: 3.805947659 | J114: 2.543978907 | K114: 8.138866597 | L114: 2.765563168 | M114: 4.765727069 | P114: ZC3H11A
A115: BRD2 | B115: NM_001199455 | C115: 4602 | D115: 15.61825212 | E115: 50.77053124 | F115: 21.44684773 | G115: 16.49750995 | H115: 49.75273263 | I115: 13.20355951 | J115: 3.250509746 | K115: 2.367162052 | L115: 3.015589455 | M115: 3.767844932 | P115: ZFYVE26
A116: BRD4 | B116: NM_058243 | C116: 5198 | D116: 5.608889676 | E116: 12.50616841 | F116: 7.010812728 | G116: 7.447886553 | H116: 18.04376725 | I116: 10.91032791 | J116: 2.229307372 | K116: 1.783585628 | L116: 2.422344215 | M116: 1.653672898 | P116: ZNF827
A117: BTAF1 | B117: NR_165093 | C117: 8848 | D117: 5.868569132 | E117: 9.823782337 | F117: 2.588790594 | G117: 2.975811587 | H117: 7.055194395 | I117: 0 | J117: 1.673680319 | K117: 3.793272846 | L117: 2.370050703 | M117: 7055.194395
A118: BTBD7 | B118: NM_001002860 | C118: 8445 | D118: 3.1438006 | E118: 5.777314433 | F118: 2.857833763 | G118: 1.119843542 | H118: 3.244989972 | I118: 0.476504868 | J118: 1.837100398 | K118: 2.02086407 | L118: 2.89513197 | M118: 6.795721237
A119: BTN3A2 | B119: NM_001197247 | C119: 4068 | D119: 0.285545633 | E119: 1.513198968 | F119: 0 | G119: 0.503498941 | H119: 0.972665331 | I119: 0.475605019 | J119: 5.280830673 | K119: 1513.198968 | L119: 1.927982899 | M119: 2.040820579
A120: C15orf39 | B120: NM_015492 | C120: 4425 | D120: 2.835526654 | E120: 10.98626143 | F120: 3.887166161 | G120: 5.483525361 | H120: 11.21627155 | I120: 1.830016809 | J120: 3.873138796 | K120: 2.825563768 | L120: 2.045076066 | M120: 6.12570649
A121: C19orf44 | B121: NM_032207 | C121: 3346 | D121: 1.997632132 | E121: 4.012746583 | F121: 2.643822151 | G121: 1.381300951 | H121: 4.803094237 | I121: 1.175480197 | J121: 2.007746458 | K121: 1.517208475 | L121: 3.474709493 | M121: 4.082596757
A122: C19orf47 | B122: NM_001256440 | C122: 2104 | D122: 5.003875555 | E122: 11.33136109 | F122: 7.2168638 | G122: 2.488516874 | H122: 13.1110725 | I122: 3.850594033 | J122: 2.264064504 | K122: 1.569905086 | L122: 5.266512807 | M122: 3.404063977
A123: C19orf54 | B123: NM_001353809 | C123: 2398 | D123: 2.286824472 | E123: 5.193355423 | F123: 2.450000314 | G123: 1.536044029 | H123: 4.451087422 | I123: 0 | J123: 2.269997321 | K123: 2.11887179 | L123: 2.895875029 | M123: 4451.087422
A124: C1orf50 | B124: NM_024097 | C124: 4759 | D124: 1.994663882 | E124: 3.288463366 | F124: 0 | G124: 0.937874441 | H124: 2.717767308 | I124: 0 | J124: 1.64780422 | K124: 3288.463366 | L124: 2.89470795 | M124: 2717.767308
A125: C2CD2 | B125: NM_015500 | C125: 6473 | D125: 2.998525973 | E125: 4.73285996 | F125: 1.594876829 | G125: 2.849827364 | H125: 8.257889595 | I125: 0.638200884 | J125: 1.577869304 | K125: 2.965679979 | L125: 2.89666421 | M125: 12.9190835
A126: C2CD2L | B126: NM_014807 | C126: 4810 | D126: 2.991486981 | E126: 5.918001235 | F126: 0.299039405 | G126: 3.657119084 | H126: 10.59737716 | I126: 4.788237111 | J126: 1.97761971 | K126: 19.72408003 | L126: 2.896947015 | M126: 2.212748485
A127: C2CD3 | B127: NM_001286577 | C127: 7960 | D127: 2.034777659 | E127: 5.930238812 | F127: 0.762942742 | G127: 1.195828233 | H127: 4.158619974 | I127: 0.508899447 | J127: 2.913009083 | K127: 7.76267446 | L127: 3.474700763 | M127: 8.155764825
A128: C3orf18 | B128: NM_001171740 | C128: 2568 | D128: 1.681555929 | E128: 3.168263172 | F128: 1.261111011 | G128: 0.79064954 | H128: 2.291163023 | I128: 0 | J128: 1.883006156 | K128: 2.510288829 | L128: 2.894163272 | M128: 2291.163023
A129: C6orf132 | B129: NM_001164446 | C129: 6385 | D129: 2.642675223 | E129: 5.304309448 | F129: 1.801735492 | G129: 3.388873417 | H129: 9.41074814 | I129: 0 | J129: 2.006414934 | K129: 2.942367015 | L129: 2.776135561 | M129: 9410.74814
A130: C8orf58 | B130: NM_001013842 | C130: 2056 | D130: 0.982321078 | E130: 1.850774776 | F130: 0 | G130: 0.692840236 | H130: 4.015347467 | I130: 0 | J130: 1.882167298 | K130: 1850.774776 | L130: 5.787135509 | M130: 4015.347467
A131: CABIN1 | B131: NM_012295 | C131: 7233 | D131: 4.485534328 | E131: 9.639493504 | F131: 4.485360342 | G131: 3.493179011 | H131: 7.257376222 | I131: 1.682718383 | J131: 2.148538894 | K131: 2.148622217 | L131: 2.076990389 | M131: 4.310326653
A132: CABLES1 | B132: NM_001100619 | C132: 5005 | D132: 1.213505336 | E132: 3.143878668 | F132: 2.022553942 | G132: 1.806844417 | H132: 5.511644198 | I132: 1.618621418 | J132: 2.588608362 | K132: 1.553642136 | L132: 3.048738125 | M132: 3.403044771
A133: CACFD1 | B133: NM_001242369 | C133: 2880 | D133: 1.6871532 | E133: 6.622613682 | F133: 2.460383627 | G133: 3.470770462 | H133: 5.74702946 | I133: 0 | J133: 3.922993293 | K133: 2.690606052 | L133: 1.655359858 | M133: 5747.02946
A134: CACNA1H | B134: NM_021098 | C134: 8218 | D134: 5.357012477 | E134: 41.03268388 | F134: 6.7586136 | G134: 10.94646697 | H134: 57.98201813 | I134: 7.011764985 | J134: 7.658191177 | K134: 6.070270626 | L134: 5.29638667 | M134: 8.268068052
A135: CAMSAP1 | B135: NM_015447 | C135: 8018 | D135: 4.138927556 | E135: 8.622958835 | F135: 3.71434169 | G135: 4.740612601 | H135: 15.54431095 | I135: 9.555154713 | J135: 2.082876746 | K135: 2.320906004 | L135: 3.27827519 | M135: 1.626628222
A136: CANT1 | B136: NM_138793 | C136: 3482 | D136: 10.19483566 | E136: 29.54042133 | F136: 14.60447541 | G136: 12.79199716 | H136: 42.13956932 | I136: 8.021465235 | J136: 2.897302616 | K136: 2.022558013 | L136: 3.293955966 | M136: 5.252695784
A137: CARD10 | B137: NM_014550 | C137: 4111 | D137: 4.673466946 | E137: 12.29060577 | F137: 6.231025945 | G137: 6.226146154 | H137: 17.68772814 | I137: 3.116801455 | J137: 2.629306381 | K137: 1.972168582 | L137: 2.840422836 | M137: 5.673141281
A138: CASKIN1 | B138: NM_020764 | C138: 5839 | D138: 2.204137513 | E138: 7.200499229 | F138: 3.732685542 | G138: 3.844708571 | H138: 9.687716452 | I138: 1.422592687 | J138: 3.265328891 | K138: 1.928523211 | L138: 2.519097917 | M138: 6.805118164
A139: CASZ1 | B139: NM_001079843 | C139: 7932 | D139: 1.932585057 | E139: 4.132221587 | F139: 1.525654745 | G139: 3.108730052 | H139: 7.968761392 | I139: 4.070157288 | J139: 2.137077742 | K139: 2.706716499 | L139: 2.562525126 | M139: 1.957370062
A140: CBLC | B140: NM_012116 | C140: 1576 | D140: 14.50727862 | E140: 32.36793599 | F140: 12.08894485 | G140: 15.85656704 | H140: 41.61278769 | I140: 2.546089276 | J140: 2.230997683 | K140: 2.677260847 | L140: 2.624159657 | M140: 16.33738875
A141: CBX2 | B141: NM_005189 | C141: 4628 | D141: 5.411713081 | E141: 11.17997773 | F141: 5.696285342 | G141: 4.129377441 | H141: 10.99544035 | I141: 0.949756435 | J141: 2.065503485 | K141: 1.962334175 | L141: 2.662090936 | M141: 11.56493918
A142: CC2D1A | B142: NM_017721 | C142: 3581 | D142: 4.116029629 | E142: 9.562714044 | F142: 3.337196699 | G142: 6.407604311 | H142: 11.36773466 | I142: 2.225742888 | J142: 2.322721696 | K142: 2.864634683 | L142: 1.77382377 | M142: 5.105095304
A143: CCDC142 | B143: NM_001365575 | C143: 4128 | D143: 2.146383852 | E143: 4.615469877 | F143: 1.866342771 | G143: 1.42611805 | H143: 2.543055496 | I143: 0 | J143: 2.149345527 | K143: 2.47167791 | L143: 1.781951743 | M143: 2543.055496
A144: CCDC3 | B144: NM_031455 | C144: 2747 | D144: 1.626770518 | E144: 4.179630864 | F144: 2.218221701 | G144: 2.086111878 | H144: 9.067624977 | I144: 2.958981713 | J144: 2.567702768 | K144: 1.883376889 | L144: 4.344580218 | M144: 3.063405742
A145: CCDC34 | B145: NM_030771 | C145: 1452 | D145: 1.365140498 | E145: 2.89368822 | F145: 1.365174878 | G145: 0.320945904 | H145: 13.02091289 | I145: 0 | J145: 2.118148334 | K145: 2.118095031 | L145: 40.44441233 | M145: 13020.91289
A146: CCDC71L | B146: NM_175884 | C146: 6798 | D146: 1.245562434 | E146: 2.863502198 | F146: 0.889619157 | G146: 1.115537013 | H146: 3.232515058 | I146: 1.186693705 | J146: 2.297118957 | K146: 3.215181456 | L146: 2.895125751 | M146: 2.721673984
A147: CCDC88C | B147: NM_001080414 | C147: 7519 | D147: 2.14731673 | E147: 4.488199084 | F147: 0.939343688 | G147: 1.388235193 | H147: 4.754265656 | I147: 0 | J147: 2.089170103 | K147: 4.77293477 | L147: 3.42221798 | M147: 4754.265656
A148: CCND3 | B148: NM_001760 | C148: 2024 | D148: 3.689958568 | E148: 6.860838501 | F148: 3.398573614 | G148: 2.739536424 | H148: 19.8458884 | I148: 1.94284408 | J148: 1.858822952 | K148: 2.018146768 | L148: 7.241607237 | M148: 10.2096092
A149: CCNE1 | B149: NM_001238 | C149: 1954 | D149: 3.72634083 | E149: 7.069511838 | F149: 3.105187345 | G149: 2.190125504 | H149: 19.74438796 | I149: 0 | J149: 1.896663643 | K149: 2.27594509 | L149: 9.011071216 | M149: 19744.38796
A150: CD276 | B150: NM_001024736 | C150: 3292 | D150: 6.191260292 | E150: 14.86140327 | F150: 6.845833427 | G150: 7.557666548 | H150: 28.3888109 | I150: 3.57323276 | J150: 2.399996539 | K150: 2.170551311 | L150: 3.755796174 | M150: 7.942630714
A151: CD2BP2 | B151: NM_001243646 | C151: 3498 | D151: 5.208091143 | E151: 15.33205139 | F151: 6.805799988 | G151: 4.730685686 | H151: 12.90183416 | I151: 3.552328566 | J151: 2.943325615 | K151: 2.252460983 | L151: 2.726688757 | M151: 3.630915048
A152: CDC14B | B152: NM_033331 | C152: 5602 | D152: 1.520083139 | E152: 4.602869706 | F152: 2.352397175 | G152: 2.467568165 | H152: 9.369480114 | I152: 2.896546009 | J152: 3.026047418 | K152: 1.955840584 | L152: 3.795512008 | M152: 3.233591489
A153: CDC42BPA | B153: NM_001366019 | C153: 10912 | D153: 5.203257136 | E153: 8.487167062 | F153: 4.046838436 | G153: 4.349448376 | H153: 6.564262392 | I153: 0.38555086 | J153: 1.630812398 | K153: 2.096715864 | L153: 1.508870311 | M153: 16.98162667
A154: CDC42BPB | B154: NM_006035 | C154: 6844 | D154: 9.487289704 | E154: 25.11866775 | F154: 9.365978787 | G154: 8.524007876 | H154: 24.70001638 | I154: 3.627085285 | J154: 2.647333559 | K154: 2.681618943 | L154: 2.897359948 | M154: 6.808003241
A155: CDK12 | B155: NM_016507 | C155: 8287 | D155: 4.937556373 | E155: 7.71393354 | F155: 4.521817306 | G155: 3.160627377 | H155: 4.995573352 | I155: 2.445236924 | J155: 1.561981469 | K155: 1.705559393 | L155: 1.580063922 | M155: 2.042146165
A156: CDK13 | B156: NM_003718 | C156: 9525 | D156: 3.309089712 | E156: 6.152600105 | F156: 2.902597377 | G156: 3.343910334 | H156: 5.141366044 | I156: 2.323065062 | J156: 1.858741194 | K156: 2.118957729 | L156: 1.53707141 | M156: 2.212229824
A157: CDK5R1 | B157: NM_003885 | C157: 3948 | D157: 1.575971043 | E157: 3.587966714 | F157: 0.787978063 | G157: 1.605532431 | H157: 6.441907419 | I157: 3.678722797 | J157: 2.275226758 | K157: 4.547612769 | L157: 4.009820963 | M157: 1.750650191
A158: CDK9 | B158: NM_001261 | C158: 2476 | D158: 7.535114198 | E158: 15.23841127 | F158: 8.19001094 | G158: 5.584108362 | H158: 8.927439697 | I158: 1.638694982 | J158: 2.022051533 | K158: 1.860382239 | L158: 1.598436256 | M158: 5.444573408
A159: CDPF1 | B159: NM_207327 | C159: 1489 | D159: 1.628381854 | E159: 2.876283667 | F159: 0.678376429 | G159: 0.79751079 | H159: 3.697741175 | I159: 0 | J159: 1.765260648 | K159: 4.233711304 | L159: 4.630796755 | M159: 3697.741175
A160: CDR2L | B160: NM_014603 | C160: 3533 | D160: 4.469929815 | E160: 9.582384814 | F160: 4.870811983 | G160: 7.005846891 | H160: 10.93123865 | I160: 0 | J160: 2.143264424 | K160: 1.966903659 | L160: 1.560079565 | M160: 10931.23865
A161: CEBPB | B161: NM_005194 | C161: 1839 | D161: 11.32811344 | E161: 34.13993703 | F161: 6.239794076 | G161: 29.00213754 | H161: 69.32423592 | I161: 26.89047658 | J161: 3.013469431 | K161: 5.470447609 | L161: 2.390232292 | M161: 2.577925973
A162: CELSR1 | B162: NM_014246 | C162: 11839 | D162: 3.910965969 | E162: 11.4925345 | F162: 3.644196644 | G162: 5.600385582 | H162: 19.13494427 | I162: 2.489744859 | J162: 2.937789999 | K162: 3.152788621 | L162: 3.416109102 | M162: 7.682418454
A163: CELSR2 | B163: NM_001408 | C163: 11015 | D163: 2.881322509 | E163: 13.84332757 | F163: 2.593059289 | G163: 3.612812929 | H163: 13.87141226 | I163: 8.070956952 | J163: 4.802837825 | K163: 5.336550182 | L163: 3.838442258 | M163: 1.718469554
A164: CELSR3 | B164: NM_001407 | C164: 11933 | D164: 1.286354667 | E164: 8.849308671 | F164: 1.184735978 | G164: 2.06917773 | H164: 23.52239702 | I164: 8.80474953 | J164: 6.874025393 | K164: 7.463135837 | L164: 11.36250124 | M164: 2.671254382
A165: CENPV | B165: NM_181716 | C165: 1131 | D165: 6.261819831 | E165: 11.06041208 | F165: 3.478640492 | G165: 3.680257554 | H165: 68.72751916 | I165: 0 | J165: 1.766043472 | K165: 3.178607705 | L165: 18.6695764 | M165: 68727.51916
A166: CEP131 | B166: NM_001319228 | C166: 3639 | D166: 4.307778567 | E166: 8.194190422 | F166: 3.31354582 | G166: 4.933895465 | H166: 7.524767831 | I166: 0 | J166: 1.901743219 | K166: 2.472191023 | L166: 1.524807949 | M166: 7524.767831
A167: CEP170B | B167: NM_001112726 | C167: 6727 | D167: 5.133376054 | E167: 25.9570777 | F167: 6.491877834 | G167: 8.305980718 | H167: 38.26220197 | I167: 9.666459162 | J167: 5.055546658 | K167: 3.997777005 | L167: 4.606029949 | M167: 3.957834352
A168: CEP192 | B168: NM_032142 | C168: 7960 | D168: 3.325287875 | E168: 5.7091466 | F168: 2.411351317 | G168: 1.31290743 | H168: 2.421015546 | I168: 0 | J168: 1.716371768 | K168: 2.366631493 | L168: 1.842607394 | M168: 2421.015546
A169: CFAP43 | B169: NM_025145 | C169: 5367 | D169: 0.602045872 | E169: 1.329363378 | F169: 0.18805333 | G169: 0.707730608 | H169: 11.79314185 | I169: 0.752827854 | J169: 2.20441502 | K169: 7.031684541 | L169: 16.63980886 | M169: 15.64434345
A170: CFL1 | B170: NM_005507 | C170: 1245 | D170: 41.39521206 | E170: 71.69488304 | F170: 31.81020139 | G170: 17.79778976 | H170: 39.50232192 | I170: 22.55846312 | J170: 1.731918924 | K170: 2.253762194 | L170: 2.219382467 | M170: 1.751031118
A171: CHCHD5 | B171: NM_001304354 | C171: 547 | D171: 1.747875111 | E171: 4.802568821 | F171: 0 | G171: 1.369768212 | H171: 19.8458884 | I171: 0 | J171: 2.74609021 | K171: 4802.568821 | L171: 14.47793159 | M171: 19845.8884
A172: CHD5 | B172: NM_015557 | C172: 9850 | D172: 1.466654642 | E172: 3.010081168 | F172: 1.3094511 | G172: 2.364430443 | H172: 5.709478707 | I172: 0.419191383 | J172: 2.050946511 | K172: 2.296980916 | L172: 2.413716592 | M172: 13.58780531
A173: CHD8 | B173: NM_001170629 | C173: 8467 | D173: 4.034529969 | E173: 11.41376077 | F173: 5.042944233 | G173: 2.54479372 | H173: 5.698137875 | I173: 1.476583651 | J173: 2.828317683 | K173: 2.262864188 | L173: 2.238255924 | M173: 3.856389363
A174: CHMP6 | B174: NM_024591 | C174: 1664 | D174: 2.676767692 | E174: 8.310039477 | F174: 4.258427275 | G174: 3.718651355 | H174: 11.60456903 | I174: 2.434369511 | J174: 3.103345933 | K174: 1.950975786 | L174: 3.119800197 | M174: 4.765013678
A175: CHPF | B175: NM_024536 | C175: 3028 | D175: 14.89213341 | E175: 46.23202212 | F175: 26.73714555 | G175: 30.23716248 | H175: 94.07396295 | I175: 50.1110212 | J175: 3.104250855 | K175: 1.72906614 | L175: 3.111100518 | M175: 1.877273371
A176: CHRM4 | B176: NM_001366692 | C176: 2846 | D176: 0.668534668 | E176: 1.049621449 | F176: 0.557007041 | G176: 2.095746824 | H176: 16.70025672 | I176: 2.229411505 | J176: 1.567687977 | K176: 1.881018288 | L176: 7.964841787 | M176: 7.487522676
A177: CHST15 | B177: NM_015892 | C177: 4762 | D177: 8.552460624 | E177: 18.74606322 | F177: 7.832363503 | G177: 8.162186442 | H177: 16.15224253 | I177: 2.541313152 | J177: 2.191634947 | K177: 2.393105237 | L177: 1.978668826 | M177: 6.353364658
A178: CHSY1 | B178: NM_014918 | C178: 4662 | D178: 3.737789794 | E178: 6.49742781 | F178: 2.224797799 | G178: 3.347559935 | H178: 7.275332539 | I178: 2.670891466 | J178: 1.737842502 | K178: 2.919145581 | L178: 2.172675025 | M178: 2.722914696
A179: CHURC1-FNTB | B179: NM_001202559 | C179: 2894 | D179: 2.518517573 | E179: 5.272401101 | F179: 0.699373795 | G179: 1.315754119 | H179: 8.578835132 | I179: 0 | J179: 2.092623269 | K179: 7.527981684 | L179: 6.515138254 | M179: 8578.835132
A180: CIC | B180: NM_001304815 | C180: 8227 | D180: 3.740673236 | E180: 18.37295312 | F180: 5.660059118 | G180: 5.033602562 | H180: 12.40630282 | I180: 7.385756241 | J180: 4.910357469 | K180: 3.245497483 | L180: 2.464206989 | M180: 1.679533264
A181: CIT | B181: NM_001206999 | C181: 8736 | D181: 2.790070028 | E181: 4.928117288 | F181: 1.162469541 | G181: 1.147872477 | H181: 3.801383776 | I181: 0 | J181: 1.765673107 | K181: 4.235708039 | L181: 3.308795234 | M181: 3801.383776
A182: CLASP2 | B182: NM_001365628 | C182: 7245 | D182: 2.437272335 | E182: 3.737718388 | F182: 0.283349066 | G182: 0.799481574 | H182: 3.861364174 | I182: 1.134017905 | J182: 1.532937209 | K182: 13.14482386 | L182: 4.823801446 | M182: 3.402029305
A183: CLCN7 | B183: NM_001287 | C183: 4168 | D183: 5.078421029 | E183: 14.21680027 | F183: 5.988402539 | G183: 5.519072474 | H183: 13.05525041 | I183: 3.834189086 | J183: 2.798901723 | K183: 2.373659172 | L183: 2.365050544 | M183: 3.404069556
A184: CLDN23 | B184: NM_194284 | C184: 2160 | D184: 1.037191296 | E184: 2.19841259 | F184: 0.518588784 | G184: 0.975392338 | H184: 9.892418464 | I184: 0 | J184: 2.117540957 | K184: 4.231062443 | L184: 10.1316019 | M184: 9892.418464
A185: CLDN3 | B185: NM_001306 | C185: 1274 | D185: 2.86054476 | E185: 7.859787319 | F185: 3.178216644 | G185: 7.846058012 | H185: 95.27281486 | I185: 0 | J185: 2.746693824 | K185: 2.47224024 | L185: 12.14121454 | M185: 95272.81486
A186: CLDN4 | B186: NM_001305 | C186: 1831 | D186: 21.89423474 | E186: 74.74040785 | F186: 30.40741584 | G186: 42.37434825 | H186: 75.32989934 | I186: 22.12376664 | J186: 3.413546771 | K186: 2.457885614 | L186: 1.77768213 | M186: 3.404777124
A187: CLDN7 | B187: NM_001307 | C187: 1542 | D187: 18.74500649 | E187: 37.26332909 | F187: 18.64346868 | G187: 40.27845544 | H187: 64.53613678 | I187: 34.27803252 | J187: 1.987800928 | K187: 1.998626495 | L187: 1.602209764 | M187: 1.882670893
A188: CLN3 | B188: NM_000086 | C188: 1877 | D188: 2.804487242 | E188: 6.858934878 | F188: 0.539240039 | G188: 1.775092889 | H188: 20.5753559 | I188: 2.158115745 | J188: 2.444828397 | K188: 12.69608763 | L188: 11.58461701 | M188: 9.529528904
A189: CLTCL1 | B189: NM_007098 | C189: 5517 | D189: 1.395247032 | E189: 2.161881159 | F189: 0.550661683 | G189: 1.553708098 | H189: 11.50653384 | I189: 7.346508963 | J189: 1.54835148 | K189: 3.918853213 | L189: 7.401089539 | M189: 1.566045567
A190: CNPPD1 | B190: NM_015680 | C190: 2019 | D190: 5.432660444 | E190: 16.45020327 | F190: 8.245734718 | G190: 6.158044601 | H190: 11.8960914 | I190: 1.940975162 | J190: 3.027462507 | K190: 1.99475354 | L190: 1.931483237 | M190: 6.125769079
A191: CNPY3-GNMT | B191: NM_001318857 | C191: 970 | D191: 2.14731673 | E191: 4.334730812 | F191: 0.766865327 | G191: 2.343919686 | H191: 6.269400769 | I191: 0 | J191: 2.017733583 | K191: 5.645170656 | L191: 2.67361002 | M191: 6269.400769
A192: CNTROB | B192: NM_001037144 | C192: 4062 | D192: 4.54651066 | E192: 12.30229945 | F192: 6.771073575 | G192: 3.866168224 | H192: 7.907898928 | I192: 0 | J192: 2.705282158 | K192: 1.816622237 | L192: 2.044881027 | M192: 7907.898928
A193: COBL | B193: NM_001287436 | C193: 5383 | D193: 2.106270076 | E193: 7.352154526 | F193: 1.504426639 | G193: 3.979159868 | H193: 9.224254464 | I193: 3.010065472 | J193: 3.488947435 | K193: 4.883768053 | L193: 2.317558784 | M193: 3.063451974
A194: COL1A1 | B194: NM_000088 | C194: 5914 | D194: 2.732740403 | E194: 15.36595401 | F194: 4.269733548 | G194: 9.476553713 | H194: 43.28461529 | I194: 4.100752167 | J194: 5.620853389 | K194: 3.597965979 | L194: 4.567066207 | M194: 10.55271346
A195: COL4A5 | B195: NM_033380 | C195: 6518 | D195: 2.98470241 | E195: 5.564924498 | F195: 1.70990086 | G195: 2.631362253 | H195: 5.083275784 | I195: 0.622003595 | J195: 1.863857724 | K195: 3.252628266 | L195: 1.931070003 | M195: 8.159304095
A196: COMTD1 | B196: NM_144589 | C196: 1250 | D196: 3.012858379 | E196: 4.966914938 | F196: 3.012660492 | G196: 1.77078636 | H196: 28.73521031 | I196: 3.014010965 | J196: 1.648025326 | K196: 1.648133541 | L196: 16.21821398 | M196: 9.530715027
A197: COQ4 | B197: NM_016035 | C197: 1245 | D197: 1.798420165 | E197: 3.025491449 | F197: 1.28453115 | G197: 2.114140813 | H197: 8.751782815 | I197: 0 | J197: 1.681370203 | K197: 2.353495245 | L197: 4.137683298 | M197: 8751.782815
A198: CORO1B | B198: NM_001018070 | C198: 1932 | D198: 8.268187098 | E198: 13.48100467 | F198: 7.419915248 | G198: 6.479501449 | H198: 20.21988383 | I198: 6.362558251 | J198: 1.63026964 | K198: 1.816622912 | L198: 3.120110996 | M198: 3.177449319
A199: COX6A1 | B199: NM_004373 | C199: 537 | D199: 2.123740346 | E199: 4.168027829 | F199: 0 | G199: 1.664291005 | H199: 4.822688674 | I199: 0 | J199: 1.961664557 | K199: 4168.027829 | L199: 2.896003557 | M199: 4822.688674
A200: CPSF1 | B200: NM_013291 | C200: 4480 | D200: 10.45214051 | E200: 23.71406594 | F200: 8.334338986 | G200: 7.837955898 | H200: 20.25655252 | I200: 6.309744013 | J200: 2.268606828 | K200: 2.845003182 | L200: 2.584088083 | M200: 3.209851719
A201: CPTP | B201: NM_001029885 | C201: 2154 | D201: 3.323591732 | E201: 7.175208238 | F201: 4.615959342 | G201: 2.821652445 | H201: 10.06322399 | I201: 3.694297114 | J201: 2.158222367 | K201: 1.554098208 | L201: 3.56516581 | M201: 2.723251657
... 910 more rows

Sheet normalized.counts
A1: Symbol | B1: Gene_id | C1: Length | D1: WT_eCLIP-seq_Input.rep1 | E1: WT_eCLIP-seq_TOP3B-IP.rep1 | F1: KO_eCLIP-seq_TOP3B-IP.rep1 | G1: WT_eCLIP-seq_Input.rep2 | H1: WT_eCLIP-seq_TOP3B-IP.rep2 | I1: KO_eCLIP-seq_TOP3B-IP.rep2 | J1: WT-IP/WT-Input.rep1 | K1: WT-IP/KO-IP.rep1 | L1: WT-IP/WT-Input.rep2 | M1: WT-IP/KO-IP.rep2
A2: A4GALT | B2: NM_017436 | C2: 2092 | D2: 2.058269236 | E2: 8.373130981 | F2: 3.274435342 | G2: 4.399228932 | H2: 10.19805388 | I2: 0 | J2: =E2/(D2+0.001) -> 4.066069086 | K2: =E2/(F2+0.001) -> 2.556341404 | L2: =H2/(G2+0.001) -> 2.317618932 | M2: =H2/(I2+0.001) -> 10198.05388
A3: AAAS | B3: NM_015665 | C3: 1815 | D3: 5.510767818 | E3: 5.970033597 | F3: 0.551007793 | G3: 3.10938698 | H3: 12.01340601 | I3: 17.64120145 | J3: =E3/(D3+0.001) -> 1.083143157 | K3: =E3/(F3+0.001) -> 10.81512557 | L3: =H3/(G3+0.001) -> 3.862350919 | M3: =H3/(I3+0.001) -> 0.6809471054
A4: AACS | B4: NM_023928 | C4: 3256 | D4: 2.423957614 | E4: 4.138838943 | F4: 2.575407658 | G4: 1.709619048 | H4: 3.3026392 | I4: 2.424886483 | J4: 1.706767541 | K4: 1.606437914 | L4: 1.930669019 | M4: 1.361415393
A5: AADAT | B5: NM_001286682 | C5: 2120 | D5: 1.910026359 | E5: 2.698974784 | F5: 3.342388355 | G5: 0.898093791 | H5: 7.80728055 | I5: 0 | J5: 1.41231688 | K5: 0.8072573382 | L5: 8.683499573 | M5: 7807.28055
A6: AAGAB | B6: NM_024666 | C6: 3132 | D6: 6.328987084 | E6: 4.769753986 | F6: 6.012168788 | G6: 3.571061495 | H6: 3.449250952 | I6: 0 | J6: 0.7535171751 | K6: 0.7932180443 | L6: 0.9656191409 | M6: 3449.250952
A7: AAK1 | B7: NM_014911 | C7: 21157 | D7: 1.59946262 | E7: 1.614453581 | F7: 2.61809461 | G7: 1.611590768 | H7: 3.502489856 | I7: 1.14294718 | J7: 1.008741823 | K7: 0.6164166712 | L7: 2.171964472 | M7: 3.061758372
A8: AAMDC | B8: NM_001363564 | C8: 511 | D8: 0.515118555 | E8: 1.213242376 | F8: 2.575753768 | G8: 1.211156557 | H8: 0 | I8: 0 | J8: 2.350704822 | K8: 0.4708414095 | L8: 0 | M8: 0
A9: AAMP | B9: NM_001302545 | C9: 1763 | D9: 10.5922419 | E9: 12.47290033 | F9: 14.89463131 | G9: 7.522484396 | H9: 19.54302519 | I9: 8.83022219 | J9: 1.177439395 | K9: 0.8373529171 | L9: 2.597602941 | M9: 2.212946834
A10: AAR2 | B10: NM_001271874 | C10: 2417 | D10: 1.465891378 | E10: 5.562295685 | F10: 4.886156212 | G10: 1.5317375 | H10: 0 | I10: 1.629419611 | J10: 3.791893366 | K10: 1.138145671 | L10: 0 | M10: 0
A11: AARS2 | B11: NM_020745 | C11: 4798 | D11: 2.032233444 | E11: 5.085302157 | F11: 2.540219765 | G11: 2.388882769 | H11: 2.307418215 | I11: 5.929730688 | J11: 2.501091142 | K11: 2.001126478 | L11: 0.96549431 | M11: 0.3890613714
A12: AARSD1 | B12: NM_001261434 | C12: 1320 | D12: 2.671764071 | E12: 2.796603448 | F12: 8.905767294 | G12: 3.838650233 | H12: 0 | I12: 2.969779906 | J12: 1.046333823 | K12: 0.3139863607 | L12: 0 | M12: 0
A13: AASDH | B13: NM_001323890 | C13: 3697 | D13: 2.176999229 | E13: 1.922659205 | F13: 1.08840191 | G13: 0.767730047 | H13: 0 | I13: 0 | J13: 0.8827639512 | K13: 1.764875926 | L13: 0 | M13: 0
A14: AASDHPPT | B14: NM_015423 | C14: 2767 | D14: 7.359817844 | E14: 3.999874466 | F14: 2.476766187 | G14: 4.82484539 | H14: 0.964159707 | I14: 0 | J14: 0.5434008219 | K14: 1.614306663 | L14: 0.1997908406 | M14: 964.159707
A15: AASS | B15: NM_005763 | C15: 5824 | D15: 1.172458681 | E15: 0.974564315 | F15: 0.172362991 | G15: 0.243209404 | H15: 0 | I15: 0 | J15: 0.8305058634 | K15: 5.621524579 | L15: 0 | M15: 0
A16: AATK | B16: NM_001080395 | C16: 5460 | D16: 0.381208085 | E16: 1.256935056 | F16: 0.762365892 | G16: 1.882099187 | H16: 4.155217724 | I16: 1.525452395 | J16: 3.288614515 | K16: 1.64656958 | L16: 2.206584631 | M16: 2.722140394
A17: ABAT | B17: NM_000663 | C17: 5586 | D17: 1.377267919 | E17: 1.280413073 | F17: 0.543624104 | G17: 0.511236095 | H17: 1.975320861 | I17: 0 | J17: 0.929001579 | K17: 2.351003313 | L17: 3.856270342 | M17: 1975.320861
A18: ABCA1 | B18: NM_005502 | C18: 10408 | D18: 0.385533249 | E18: 0.453968755 | F18: 0.192668135 | G18: 0.181239181 | H18: 0 | I18: 0.385689298 | J18: 1.174462368 | K18: 2.344054973 | L18: 0 | M18: 0
A19: ABCA2 | B19: NM_212533 | C19: 8146 | D19: 6.710704011 | E19: 25.34574278 | F19: 14.290784 | G19: 10.45953722 | H19: 54.18271351 | I19: 23.37227307 | J19: 3.776349901 | K19: 1.773448492 | L19: 5.179725703 | M19: 2.318148312
A20: ABCA3 | B20: NM_001089 | C20: 6602 | D20: 0.917104389 | E20: 1.943871004 | F20: 2.445500879 | G20: 1.72487438 | H20: 8.330281904 | I20: 1.223241434 | J20: 2.117265779 | K20: 0.7945515249 | L20: 4.826702337 | M20: 6.804443693
A21: ABCA5 | B21: NM_018672 | C21: 9249 | D21: 1.683676108 | E21: 1.399434833 | F21: 0.866545129 | G21: 0.407441445 | H21: 0 | I21: 0 | J21: 0.8306847983 | K21: 1.613097447 | L21: 0 | M21: 0
A22: ABCA7 | B22: NM_019112 | C22: 6814 | D22: 8.433561017 | E22: 31.40153006 | F22: 5.344983262 | G22: 14.59125041 | H22: 66.75944383 | I22: 17.23010871 | J22: 3.722959618 | K22: 5.873854915 | L22: 4.574993024 | M22: 3.874355676
A23: ABCB1 | B23: NM_001348945 | C23: 4768 | D23: 0.084891945 | E23: 0.099985531 | F23: 0 | G23: 0.399266339 | H23: 0.578508425 | I23: 0 | J23: 1.164085072 | K23: 99.985531 | L23: 1.445308707 | M23: 578.508425
A24: ABCB10 | B24: NM_012089 | C24: 3869 | D24: 1.049827559 | E24: 1.97795492 | F24: 1.049752913 | G24: 1.23407605 | H24: 1.430330894 | I24: 0 | J24: 1.882283066 | K24: 1.882416785 | L24: 1.158091353 | M24: 1430.330894
A25: ABCB6 | B25: NM_005689 | C25: 2980 | D25: 3.324524611 | E25: 4.541137932 | F25: 0.997259499 | G25: 2.501071501 | H25: 14.49496899 | I25: 1.330323513 | J25: 1.365540317 | K25: 4.549055568 | L25: 5.793187359 | M25: 10.88763839
A26: ABCB7 | B26: NM_004299 | C26: 4594 | D26: 1.840569313 | E26: 2.955510642 | F26: 1.673097785 | G26: 0.786707971 | H26: 0 | I26: 0 | J26: 1.604886996 | K26: 1.765434892 | L26: 0 | M26: 0
A27: ABCB8 | B27: NM_001282291 | C27: 4707 | D27: 3.591751902 | E27: 6.042099324 | F27: 4.061951924 | G27: 4.423170314 | H27: 6.408514971 | I27: 1.710959811 | J27: 1.681746886 | K27: 1.487120556 | L27: 1.448523569 | M27: 3.74337933
A28: ABCB9 | B28: NM_019625 | C28: 3484 | D28: 0.688209924 | E28: 3.91720284 | F28: 3.441145196 | G28: 1.752903315 | H28: 1.562892615 | I28: 6.885301535 | J28: 5.683613517 | K28: 1.138012088 | L28: 0.8910939398 | M28: 0.2269567499
A29: ABCC10 | B29: NM_001198934 | C29: 5043 | D29: 4.187776467 | E29: 8.155755367 | F29: 3.825212395 | G29: 3.976094203 | H29: 10.9728217 | I29: 1.611284185 | J29: 1.947049558 | K29: 2.131547997 | L29: 2.759004726 | M29: 6.805761541
A30: ABCC2 | B30: NM_000392 | C30: 5806 | D30: 18.25388835 | E30: 46.7547026 | F30: 18.4018836 | G30: 7.60401648 | H30: 8.611030493 | I30: 5.206736303 | J30: 2.561215478 | K30: 2.540618287 | L30: 1.13228295 | M30: 1.653507396
A31: ABCC3 | B31: NM_003786 | C31: 5693 | D31: 7.446490739 | E31: 11.26074574 | F31: 3.527095951 | G31: 10.50398936 | H31: 17.08760913 | I31: 7.841356916 | J31: 1.512018764 | K31: 3.191734549 | L31: 1.626618414 | M31: 2.178886949
A32: ABCC4 | B32: NM_005845 | C32: 5856 | D32: 3.941411732 | E32: 4.641214111 | F32: 2.247179606 | G32: 3.088730239 | H32: 2.826387274 | I32: 0.691707314 | J32: 1.177252511 | K32: 2.064432085 | L32: 0.9147682986 | M32: 4.080204174
A33: ABCC5 | B33: NM_005688 | C33: 5788 | D33: 2.209649977 | E33: 4.878804388 | F33: 2.589367445 | G33: 0.97400549 | H33: 0.470392496 | I33: 4.835583033 | J33: 2.206954714 | K33: 1.883441053 | L33: 0.4824511255 | M33: 0.09725719434
A34: ABCD1 | B34: NM_000033 | C34: 3669 | D34: 0.331511102 | E34: 1.691776933 | F34: 0.552507605 | G34: 1.10422325 | H34: 3.764400064 | I34: 0 | J34: 5.087881045 | K34: 3.056465562 | L34: 3.406008753 | M34: 3764.400064
A35: ABCD3 | B35: NM_002858 | C35: 3604 | D35: 5.039240131 | E35: 3.032924643 | F35: 1.679673883 | G35: 3.159240528 | H35: 1.525656885 | I35: 0 | J35: 0.6017420925 | K35: 1.804588429 | L35: 0.4827660653 | M35: 1525.656885
A36: ABCD4 | B36: NM_005050 | C36: 3035 | D36: 3.463099474 | E36: 4.078013657 | F36: 3.206482329 | G36: 2.261584689 | H36: 1.747559158 | I36: 1.283116029 | J36: 1.177221869 | K36: 1.27140643 | L36: 0.7723729266 | M36: 1.360904403
A37: ABCE1 | B37: NM_002940 | C37: 3887 | D37: 2.703397133 | E37: 1.023152025 | F37: 1.44801064 | G37: 2.269832788 | H37: 0 | I37: 0 | J37: 0.3783290599 | K37: 0.7061038731 | L37: 0 | M37: 0
A38: ABCF3 | B38: NM_018358 | C38: 2572 | D38: 4.880565976 | E38: 8.71342625 | F38: 2.361396046 | G38: 4.996814585 | H38: 4.290110617 | I38: 1.574944113 | J38: 1.784965376 | K38: 3.688385047 | L38: 0.8583973143 | M38: 2.722247941
A39: ABCG1 | B39: NM_004915 | C39: 2995 | D39: 1.216812814 | E39: 1.273614419 | F39: 0.337919143 | G39: 0.635687486 | H39: 0.921001542 | I39: 1.352542872 | J39: 1.045821168 | K39: 3.757871001 | L39: 1.446551978 | M39: 0.6804376581
A40: ABCG2 | B40: NM_001348989 | C40: 4076 | D40: 0 | E40: 0.112404404 | F40: 0 | G40: 0.224523448 | H40: 0 | I40: 0 | J40: 112.404404 | K40: 112.404404 | L40: 0 | M40: 0
A41: ABHD10 | B41: NM_018394 | C41: 2604 | D41: 23.52550004 | E41: 9.868925396 | F41: 11.39464735 | G41: 7.777664491 | H41: 0 | I41: 0 | J41: 0.4194812394 | K41: 0.8660258687 | L41: 0 | M41: 0
A42: ABHD11 | B42: NM_148912 | C42: 1482 | D42: 5.191384137 | E42: 4.182622272 | F42: 2.732195679 | G42: 6.744827435 | H42: 0 | I42: 10.93344712 | J42: 0.8055302076 | K42: 1.530304729 | L42: 0 | M42: 0
A43: ABHD12 | B43: NM_015600 | C43: 1577 | D43: 2.113902718 | E43: 4.978427324 | F43: 2.34858996 | G43: 4.693678733 | H43: 3.200193687 | I43: 9.398719355 | J43: 2.353974621 | K43: 2.11884942 | L43: 0.6816640433 | M43: 0.3404563015
A44: ABHD13 | B44: NM_032859 | C44: 5313 | D44: 1.832851863 | E44: 1.07917293 | F44: 0.190822213 | G44: 0.807948649 | H44: 0 | I44: 0 | J44: 0.5884733395 | K44: 5.625901782 | L44: 0 | M44: 0
A45: ABHD14A | B45: NM_015407 | C45: 1066 | D45: 0.365433957 | E45: 3.012438034 | F45: 0.913616147 | G45: 2.577567136 | H45: 0 | I45: 0 | J45: 8.220957628 | K45: 3.293663734 | L45: 0 | M45: 0
A46: ABHD14A-ACY1 | B46: NM_001316331 | C46: 1836 | D46: 2.586024055 | E46: 3.806339464 | F46: 2.154883494 | G46: 3.799818479 | H46: 4.404274989 | I46: 0 | J46: 1.471319703 | K46: 1.765558981 | L46: 1.158770147 | M46: 4404.274989
A47: ABHD14B | B47: NM_032750 | C47: 2437 | D47: 5.483290305 | E47: 8.609089582 | F47: 7.476908098 | G47: 4.492366747 | H47: 4.52782705 | I47: 16.62229505 | J47: 1.56977277 | K47: 1.151269776 | L47: 1.00766915 | M47: 0.2723784326
A48: ABHD15 | B48: NM_198147 | C48: 3492 | D48: 1.689697415 | E48: 6.111354941 | F48: 2.112081171 | G48: 1.702392839 | H48: 1.644420594 | I48: 1.207390241 | J48: 3.614694674 | K48: 2.892153423 | L48: 0.9653795392 | M48: 1.360835712
A49: ABHD17A | B49: NM_031213 | C49: 1859 | D49: 0 | E49: 0.555676611 | F49: 1.769662593 | G49: 0 | H49: 1.607562891 | I49: 0 | J49: 555.676611 | K49: 0.3138241092 | L49: 1607.562891 | M49: 1607.562891
A50: ABHD17B | B50: NM_016014 | C50: 1626 | D50: 3.735500001 | E50: 5.864971738 | F50: 1.245074562 | G50: 1.756406932 | H50: 0 | I50: 2.491267681 | J50: 1.569643178 | K50: 4.706758261 | L50: 0 | M50: 0
A51: ABHD17C | B51: NM_021214 | C51: 2361 | D51: 3.259986379 | E51: 4.444959647 | F51: 2.573561735 | G51: 3.227050113 | H51: 9.351082765 | I51: 8.58227907 | J51: 1.363072129 | K51: 1.72649177 | L51: 2.896820817 | M51: 1.089453423
A52: ABHD18 | B52: NM_001358454 | C52: 5772 | D52: 1.419247452 | E52: 1.002756064 | F52: 0.354763184 | G52: 1.084442413 | H52: 0 | I52: 0 | J52: 0.7060432058 | K52: 2.818605491 | L52: 0 | M52: 0
A53: ABHD2 | B53: NM_007011 | C53: 8822 | D53: 4.218476651 | E53: 4.094058479 | F53: 5.736434151 | G53: 2.016185525 | H53: 3.000154017 | I53: 1.854935715 | J53: 0.9702763678 | K53: 0.7135695803 | L53: 1.487297018 | M53: 1.616518284
A54: ABHD3 | B54: NM_138340 | C54: 2029 | D54: 7.847458887 | E54: 3.927264847 | F54: 3.923507755 | G54: 5.996075313 | H54: 10.69213611 | I54: 11.77570616 | J54: 0.5003867515 | K54: 1.000702532 | L54: 1.782891752 | M54: 0.9079054843
A55: ABHD4 | B55: NM_022060 | C55: 2509 | D55: 1.129715883 | E55: 2.850630081 | F55: 1.613797532 | G55: 1.897135543 | H55: 1.099430627 | I55: 0 | J55: 2.521084318 | K55: 1.765317338 | L55: 0.5792160792 | M55: 1099.430627
A56: ABHD5 | B56: NM_016006 | C56: 5298 | D56: 0.797102289 | E56: 1.251496133 | F56: 1.328371804 | G56: 0.312332846 | H56: 0 | I56: 2.658016698 | J56: 1.568089893 | K56: 0.9414191946 | L56: 0 | M56: 0
A57: ABHD6 | B57: NM_020676 | C57: 2425 | D57: 0.834841465 | E57: 2.162878295 | F57: 1.669752051 | G57: 1.766552823 | H57: 3.412645268 | I57: 5.011330544 | J57: 2.587665706 | K57: 1.294553727 | L57: 1.930717557 | M57: 0.6808500034
A58: ABHD8 | B58: NM_024527 | C58: 2042 | D58: 2.131203374 | E58: 6.159942651 | F58: 4.84346926 | G58: 3.416245424 | H58: 10.55913336 | I58: 19.38213317 | J58: 2.889003332 | K58: 1.271541281 | L58: 3.089954642 | M58: 0.5447588513
A59: ABI2 | B59: NM_001375670 | C59: 6567 | D59: 7.807090689 | E59: 5.530206041 | F59: 5.641599895 | G59: 4.875355866 | H59: 3.462418918 | I59: 3.660933467 | J59: 0.7082661128 | K59: 0.9800811938 | L59: 0.7100422966 | M59: 0.9455166101
A60: ABL1 | B60: NM_007313 | C60: 5881 | D60: 5.301718223 | E60: 19.21580485 | F60: 6.712927024 | G60: 5.260972698 | H60: 20.16985816 | I60: 9.643270735 | J60: 3.623765028 | K60: 2.86208128 | L60: 3.833136224 | M60: 2.091382409
A61: ABL2 | B61: NM_005158 | C61: 11923 | D61: 3.431466412 | E61: 4.240909394 | F61: 3.737184977 | G61: 2.396327955 | H61: 3.934827562 | I61: 1.699469426 | J61: 1.235528301 | K61: 1.134483558 | L61: 1.641338872 | M61: 2.313965486
A62: ABLIM1 | B62: NM_001322882 | C62: 8047 | D62: 12.12733591 | E62: 11.61400377 | F62: 16.85684667 | G62: 5.737683568 | H62: 8.570203499 | I62: 8.054413567 | J62: 0.9575925219 | K62: 0.6889375611 | L62: 1.493409315 | M62: 1.063906083
A63: ABLIM3 | B63: NM_001301015 | C63: 4451 | D63: 1.016667969 | E63: 1.632583323 | F63: 1.386287614 | G63: 1.846990027 | H63: 0 | I63: 1.849190523 | J63: 1.604239666 | K63: 1.176816766 | L63: 0 | M63: 0
A64: ABR | B64: NM_001322841 | C64: 6010 | D64: 3.934627161 | E64: 9.985408993 | F64: 2.713390346 | G64: 4.505578303 | H64: 11.0915224 | I64: 4.071887767 | J64: 2.537183677 | K64: 3.678693084 | L64: 2.461184884 | M64: 2.723257559
A65: ABRACL | B65: NM_021243 | C65: 782 | D65: 6.229677925 | E65: 7.335747109 | F65: 8.385794069 | G65: 3.379822407 | H65: 0 | I65: 0 | J65: 1.177359382 | K65: 0.8746783394 | L65: 0 | M65: 0
A66: ABRAXAS1 | B66: NM_139076 | C66: 4210 | D66: 1.5778368 | E66: 1.182331165 | F66: 0 | G66: 0.505761694 | H66: 9.771764616 | I66: 2.869896622 | J66: 0.7488621782 | K66: 1182.331165 | L66: 19.28276097 | M66: 3.403732667
A67: ABRAXAS2 | B67: NM_032182 | C67: 2955 | D67: 2.842056804 | E67: 2.549857651 | F67: 1.01491113 | G67: 2.545377656 | H67: 1.843956227 | I67: 2.707785292 | J67: =E67/(D67+0.001) -> 0.8968718625 | K67: =E67/(F67+0.001) -> 2.509921956 | L67: =H67/(G67+0.001) -> 0.7241487619 | M67: =H67/(I67+0.001) -> 0.6807317776
A68: ABT1 | B68: NM_013375 | C68: 2943 | D68: 2.86291936 | E68: 3.371225641 | F68: 1.789275517 | G68: 1.051668997 | H68: 4.875927578 | I68: 0 | J68: 1.177137069 | K68: 1.883076437 | L68: 4.631966546 | M68: 4875.927578
A69: ABTB1 | B69: NM_172027 | C69: 1962 | D69: 3.483707609 | E69: 3.37829624 | F69: 1.024486852 | G69: 1.92706227 | H69: 1.395993376 | I69: 2.049926159 | J69: 0.9694633292 | K69: 3.294334036 | L69: 0.7240395695 | M69: 0.6806648644
A70: ABTB2 | B70: NM_145804 | C70: 4905 | D70: 1.403982167 | E70: 4.473604641 | F70: 2.064548673 | G70: 4.562877037 | H70: 12.37788774 | I70: 4.131000951 | J70: 3.184100657 | K70: 2.165819039 | L70: 2.712143127 | M70: 2.995615898
A71: ACAA1 | B71: NM_001607 | C71: 1699 | D71: 1.780865088 | E71: 6.291292636 | F71: 5.008563931 | G71: 2.09341108 | H71: 0 | I71: 4.453908448 | J71: 3.530734554 | K71: 1.255856343 | L71: 0 | M71: 0
A72: ACAA2 | B72: NM_006111 | C72: 2926 | D72: 0.209304016 | E72: 1.9723347 | F72: 0 | G72: 0 | H72: 0 | I72: 0 | J72: 9.378492801 | K72: 1972.3347 | L72: 0 | M72: 0
A73: ACACA | B73: NM_198834 | C73: 10013 | D73: 10.25708409 | E73: 31.22204561 | F73: 10.03362579 | G73: 4.479739128 | H73: 11.87611894 | I73: 4.461245682 | J73: 3.043652727 | K73: 3.111430985 | L73: 2.650482119 | M73: 2.661466846
A74: ACACB | B74: NM_001093 | C74: 9367 | D74: 1.006915148 | E74: 2.062167575 | F74: 0.985030264 | G74: 1.08071982 | H74: 0.894728615 | I74: 0.437949782 | J74: 2.045973393 | K74: 2.091383653 | L74: 0.8271352696 | M74: 2.038339354
A75: ACAD10 | B75: NM_001136538 | C75: 4099 | D75: 2.464834655 | E75: 5.805052939 | F75: 1.478814467 | G75: 3.013329484 | H75: 2.015013772 | I75: 4.931659262 | J75: 2.354193915 | K75: 3.922824833 | L75: 0.6684782744 | M75: 0.408504554
A76: ACAD11 | B76: NM_032169 | C76: 3231 | D76: 1.594204577 | E76: 2.413612635 | F76: 1.42332143 | G76: 1.873997073 | H76: 0.775712887 | I76: 2.27828025 | J76: 1.513042697 | K76: 1.694570189 | L76: 0.4137141856 | M76: 0.3403323865
A77: ACAD8 | B77: NM_014384 | C77: 2173 | D77: 1.839636434 | E77: 2.599623795 | F77: 1.379711516 | G77: 1.081303756 | H77: 5.01327765 | I77: 0 | J77: 1.412350504 | K77: 1.882814596 | L77: 4.632043105 | M77: 5013.27765
A78: ACAD9 | B78: NM_014049 | C78: 2445 | D78: 4.40310179 | E78: 4.999729772 | F78: 7.862359739 | G78: 3.327341146 | H78: 7.498998942 | I78: 0 | J78: 1.135243918 | K78: 0.6358261529 | L78: 2.253074013 | M78: 7498.998942
A79: ACADM | B79: NM_001286043 | C79: 2721 | D79: 3.869240857 | E79: 1.401882348 | F79: 1.859997413 | G79: 0.874663353 | H79: 1.013807348 | I79: 0 | J79: 0.3622209572 | K79: 0.7532962368 | L79: 1.157759251 | M79: 1013.807348
A80: ACADS | B80: NM_000017 | C80: 1859 | D80: 1.87177834 | E80: 2.448965633 | F80: 4.679297549 | G80: 1.711297865 | H80: 1.4167849 | I80: 12.48340311 | J80: 1.307664437 | K80: 0.5232499873 | L80: 0.8274173139 | M80: 0.1134843923
A81: ACADSB | B81: NM_001609 | C81: 5848 | D81: 1.090534986 | E81: 1.123590799 | F81: 0.511089725 | G81: 0.801160391 | H81: 0 | I81: 0 | J81: 1.029367646 | K81: 2.194128771 | L81: 0 | M81: 0
A82: ACADVL | B82: NM_001270447 | C82: 2228 | D82: 37.98511704 | E82: 52.64804739 | F82: 14.53917591 | G82: 56.82903059 | H82: 61.90707998 | I82: 10.90894353 | J82: 1.385981287 | K82: 3.620867293 | L82: 1.089337439 | M82: 5.674372173
A83: ACAP2 | B83: NM_012287 | C83: 7093 | D83: 4.574497016 | E83: 2.793068148 | F83: 1.694210521 | G83: 2.456327394 | H83: 1.154181642 | I83: 0 | J83: 0.6104403824 | K83: 1.647623179 | L83: 0.4696898121 | M83: 1154.181642
A84: ACAP3 | B84: NM_030649 | C84: 3793 | D84: 5.06298613 | E84: 15.6024565 | F84: 10.50260542 | G84: 7.597593182 | H84: 14.67717836 | I84: 2.155277758 | J84: 3.08106225 | K84: 1.485438178 | L84: 1.931565226 | M84: 6.806719731
A85: ACAT1 | B85: NM_000019 | C85: 1535 | D85: 8.538806675 | E85: 3.351645519 | F85: 2.846066008 | G85: 3.122744519 | H85: 1.292665798 | I85: 0 | J85: 0.3924732311 | K85: 1.177227893 | L85: 0.4138193089 | M85: 1292.665798
A86: ACAT2 | B86: NM_001303253 | C86: 1723 | D86: 3.760178878 | E86: 1.383661957 | F86: 4.700064174 | G86: 1.657502747 | H86: 0 | I86: 2.351029613 | J86: 0.3678798594 | K86: 0.294329519 | L86: 0 | M86: 0
A87: ACBD3 | B87: NM_022735 | C87: 3584 | D87: 5.679279601 | E87: 3.210052229 | F87: 3.407341744 | G87: 3.872007585 | H87: 0.773759744 | I87: 1.136232919 | J87: 0.5651222219 | K87: 0.9418222908 | L87: 0.1997826565 | M87: 0.6803880991
A88: ACBD5 | B88: NM_001352568 | C88: 4008 | D88: 2.323715577 | E88: 0.951720839 | F88: 0.505090477 | G88: 0.475032054 | H88: 0.688262474 | I88: 1.010669318 | J88: 0.4093923783 | K88: 1.880534968 | L88: 1.445832204 | M88: 0.680323562
A89: ACBD6 | B89: NM_032360 | C89: 1293 | D89: 3.75865235 | E89: 5.606260311 | F89: 3.758413083 | G89: 5.007325435 | H89: 3.414031369 | I89: 5.013407119 | J89: 1.491164552 | K89: 1.491259457 | L89: 0.6816712319 | M89: 0.6808444723
A90: ACBD7 | B90: NM_001039844 | C90: 3370 | D90: 0.120086907 | E90: 0.424417275 | F90: 0.300193107 | G90: 0.141239555 | H90: 0 | I90: 0 | J90: 3.50506331 | K90: 1.409120146 | L90: 0 | M90: 0
A91: ACD | B91: NM_001082486 | C91: 1511 | D91: 3.72396623 | E91: 3.000291107 | F91: 6.369585485 | G91: 2.99508148 | H91: 6.676095594 | I91: 0 | J91: 0.8054545791 | K91: 0.4709600262 | L91: 2.228275712 | M91: 6676.095594
A92: ACE | B92: NM_000789 | C92: 4962 | D92: 0.48891315 | E92: 0.095906338 | F92: 0.407371968 | G92: 0.862108726 | H92: 0.555133711 | I92: 0 | J92: 0.1957619182 | K92: 0.234850444 | L92: 0.6431793519 | M92: 555.133711
A93: ACER2 | B93: NM_001010887 | C93: 2772 | D93: 0.709835744 | E93: 0.50155933 | F93: 0.709872478 | G93: 0.166859753 | H93: 0 | I93: 0 | J93: 0.7055910374 | K93: 0.7055545763 | L93: 0 | M93: 0
A94: ACER3 | B94: NM_018367 | C94: 7333 | D94: 2.305058007 | E94: 1.421825065 | F94: 1.509156814 | G94: 1.22575496 | H94: 1.869410094 | I94: 1.647139722 | J94: 0.6165608414 | K94: 0.9415082274 | L94: 1.523865935 | M94: 1.13425462
A95: ACIN1 | B95: NM_014977 | C95: 4937 | D95: 8.776097046 | E95: 12.84546654 | F95: 12.91753321 | G95: 6.556143068 | H95: 5.028776787 | I95: 3.282027649 | J95: 1.463521079 | K95: 0.9943440429 | L95: 0.7669158252 | M95: 1.531749752
A96: ACLY | B96: NM_001303274 | C96: 4369 | D96: 15.19998332 | E96: 14.51539713 | F96: 11.12133548 | G96: 7.299566772 | H96: 6.945377342 | I96: 1.854312743 | J96: 0.9548985631 | K96: 1.305067372 | L96: 0.9513476911 | M96: 3.743507594
A97: ACO1 | B97: NM_001362840 | C97: 7510 | D97: 5.369224705 | E97: 3.951558702 | F97: 3.075998699 | G97: 2.89274667 | H97: 3.048100533 | I97: 1.118997342 | J97: 0.7358274409 | K97: 1.284225016 | L97: 1.053340489 | M97: 2.721524792
A98: ACO2 | B98: NM_001098 | C98: 2734 | D98: 3.693266046 | E98: 6.088602114 | F98: 2.585098749 | G98: 3.299458195 | H98: 4.360738796 | I98: 5.911456823 | J98: 1.648122262 | K98: 2.354357936 | L98: 1.321252547 | M98: 0.7375510598
A99: ACOT11 | B99: NM_015547 | C99: 6369 | D99: 5.425875873 | E99: 10.64868563 | F99: 10.5497918 | G99: 6.141840373 | H99: 15.05923837 | I99: 4.02066557 | J99: 1.96221286 | K99: 1.00927834 | L99: 2.451510613 | M99: 3.74452776
A100: ACOT13 | B100: NM_018473 | C100: 4041 | D100: 3.157369742 | E100: 1.626600508 | F100: 0.493207353 | G100: 0.927801542 | H100: 0 | I100: 1.974061932 | J100: 0.5150126935 | K100: 3.291332066 | L100: 0 | M100: 0
A101: ACOT7 | B101: NM_181864 | C101: 1570 | D101: 4.734528085 | E101: 4.988308034 | F101: 6.852409525 | G101: 4.393754531 | H101: 3.395129983 | I101: 22.43552985 | J101: 1.053379464 | K101: 0.7278578663 | L101: 0.7725414375 | M101: 0.1513215281
A102: ACOT8 | B102: NM_005469 | C102: 1154 | D102: 0.691517402 | E102: 6.107910289 | F102: 2.593174659 | G102: 4.064852497 | H102: 0 | I102: 0 | J102: 8.819865423 | K102: 2.354471496 | L102: 0 | M102: 0
A103: ACOT9 | B103: NM_001037171 | C103: 4317 | D103: 4.220427215 | E103: 2.760978504 | F103: 1.758356319 | G103: 3.031796465 | H103: 0 | I103: 0 | J103: 0.6540391113 | K103: 1.569311727 | L103: 0 | M103: 0
A104: ACOX1 | B104: NM_007292 | C104: 7313 | D104: 5.608465641 | E104: 4.088256961 | F104: 3.605086166 | G104: 2.605669063 | H104: 0.363851683 | I104: 3.740397091 | J104: 0.7288139767 | K104: 1.133710281 | L104: 0.1395849163 | M104: 0.09725021807
A105: ACOX2 | B105: NM_003500 | C105: 2297 | D105: 0.526058676 | E105: 0 | F105: 0.438406536 | G105: 0 | H105: 0 | I105: 0 | J105: 0 | K105: 0 | L105: 0 | M105: 0
A106: ACOX3 | B106: NM_003501 | C106: 2872 | D106: 2.113393875 | E106: 4.977248891 | F106: 1.408784792 | G106: 2.153045559 | H106: 4.79918795 | I106: 1.409441042 | J106: 2.353983782 | K106: 3.530502612 | L106: 2.227988136 | M106: 3.402615074
A107: ACOXL | B107: NM_001371254 | C107: 2714 | D107: 0.853159807 | E107: 2.411255769 | F107: 0 | G107: 1.203492395 | H107: 0 | I107: 0 | J107: 2.822956254 | K107: 2411.255769 | L107: 0 | M107: 0
A108: ACP1 | B108: NR_024080 | C108: 1580 | D108: 5.22149067 | E108: 3.074260456 | F108: 0.652648888 | G108: 5.063748265 | H108: 0 | I108: 2.611709063 | J108: 0.5886579125 | K108: 4.703229077 | L108: 0 | M108: 0
A109: ACP2 | B109: NM_001357016 | C109: 2144 | D109: 2.266385952 | E109: 3.558415233 | F109: 4.249313033 | G109: 1.998083504 | H109: 14.15316893 | I109: 5.668151389 | J109: 1.569391056 | K109: 0.8372125077 | L109: 7.079828782 | M109: 2.49652337
A110: ACP7 | B110: NM_001004318 | C110: 2902 | D110: 0.547006039 | E110: 0.966133984 | F110: 2.051165737 | G110: 0.642986688 | H110: 1.863235641 | I110: 0 | J110: 1.762998791 | K110: 0.4707875035 | L110: 2.893282852 | M110: 1863.235641
A111: ACSF2 | B111: NM_001288968 | C111: 2320 | D111: 3.665279691 | E111: 4.316057177 | F111: 2.61797924 | G111: 3.07756246 | H111: 8.323288391 | I111: 1.746053937 | J111: 1.177230746 | K111: 1.64799213 | L111: 2.703628235 | M111: 4.764185132
A112: ACSF3 | B112: NM_174917 | C112: 3695 | D112: 3.778242798 | E112: 7.500093225 | F112: 4.047992137 | G112: 5.456591307 | H112: 3.67707566 | I112: 3.239803946 | J112: 1.984549188 | K112: 1.852335834 | L112: 0.673754309 | M112: 1.134618361
A113: ACSL1 | B113: NM_001286710 | C113: 3921 | D113: 2.204137513 | E113: 2.471809109 | F113: 2.361396046 | G113: 0.986998069 | H113: 2.145055308 | I113: 0 | J113: 1.120931957 | K113: 1.046314446 | L113: 2.171112855 | M113: 2145.055308
A114: ACSL3 | B114: NM_001354159 | C114: 5410 | D114: 9.036370153 | E114: 4.943255623 | F114: 4.624727472 | G114: 4.851122516 | H114: 2.423598735 | I114: 4.982604582 | J114: 0.5469794353 | K114: 1.068643938 | L114: 0.4994924854 | M114: 0.4863144126
A115: ACSL4 | B115: NM_001318509 | C115: 5182 | D115: 4.935351387 | E115: 2.771675052 | F115: 2.277752694 | G115: 1.963558279 | H115: 0 | I115: 0.759542115 | J115: 0.5614825272 | K115: 1.216312353 | L115: 0 | M115: 0
A116: ACSL5 | B116: NM_016234 | C116: 3354 | D116: 32.71816975 | E116: 31.1345696 | F116: 6.639897725 | G116: 9.650493692 | H116: 8.224749165 | I116: 2.415541893 | J116: 0.9515696712 | K116: 4.688307348 | L116: 0.8521737078 | M116: 3.403520207
A117: ACSM3 | B117: NM_005622 | C117: 2533 | D117: 1.518726225 | E117: 2.235397265 | F117: 0.47451739 | G117: 1.115755989 | H117: 0 | I117: 0 | J117: 1.470921031 | K117: 4.700979001 | L117: 0 | M117: 0
A118: ACSS2 | B118: NM_001076552 | C118: 3018 | D118: 5.232685213 | E118: 6.161755625 | F118: 0.670762 | G118: 3.469821565 | H118: 6.398245217 | I118: 2.684458426 | J118: 1.177326372 | K118: 9.172527807 | L118: 1.843438246 | M118: 2.382552325
A119: ACTA1 | B119: NM_001100 | C119: 1490 | D119: 0 | E119: 0 | F119: 0 | G119: 0 | H119: 0 | I119: 0 | J119: 0 | K119: 0 | L119: 0 | M119: 0
A120: ACTA2 | B120: NM_001613 | C120: 1349 | D120: 0 | E120: 0.328148341 | F120: 0.696604911 | G120: 0.655176355 | H120: 1.898518228 | I120: 5.575812996 | J120: 328.148341 | K120: 0.4703928195 | L120: 2.893304846 | M120: 0.3404306778
A121: ACTB | B121: NM_001101 | C121: 1812 | D121: 34.34129356 | E121: 36.22105019 | F121: 52.40527137 | G121: 23.2797093 | H121: 20.57163863 | I121: 10.53813636 | J121: 1.05470679 | K121: 0.6911586961 | L121: 0.8836345304 | M121: 1.951928311
A122: ACTG1 | B122: NM_001199954 | C122: 2038 | D122: 128.7523309 | E122: 163.7052305 | F122: 140.9325878 | G122: 92.10702184 | H122: 109.2507049 | I122: 45.3848737 | J122: 1.271464042 | K122: 1.161577116 | L122: 1.186114985 | M122: 2.407152182
A123: ACTG2 | B123: NM_001615 | C123: 1500 | D123: 0 | E123: 0 | F123: 0 | G123: 0 | H123: 0 | I123: 3.043429119 | J123: 0 | K123: 0 | L123: 0 | M123: 0
A124: ACTL6A | B124: NM_004301 | C124: 1854 | D124: 6.187019935 | E124: 2.260960202 | F124: 4.266733925 | G124: 2.257059184 | H124: 1.453390585 | I124: 0 | J124: 0.3653770068 | K124: 0.5297800289 | L124: 0.6436459218 | M124: 1453.390585
A125: ACTL8 | B125: NM_030812 | C125: 1841 | D125: 0 | E125: 0 | F125: 0 | G125: 0 | H125: 0 | I125: 0 | J125: 0 | K125: 0 | L125: 0 | M125: 0
A126: ACTN1 | B126: NM_001130004 | C126: 3791 | D126: 10.25411584 | E126: 10.31382928 | F126: 11.61558117 | G126: 9.542538497 | H126: 8.73193636 | I126: 9.616898226 | J126: 1.005725283 | K126: 0.8878541052 | L126: 0.9149579438 | M126: 0.9078840465
A127: ACTN2 | B127: NM_001278343 | C127: 4868 | D127: 0 | E127: 0.096994123 | F127: 0 | G127: 0.193720816 | H127: 0 | I127: 0 | J127: 96.994123 | K127: 96.994123 | L127: 0 | M127: 0
A128: ACTN4 | B128: NM_004924 | C128: 4990 | D128: 21.90059528 | E128: 28.79483567 | F128: 16.71828713 | G128: 16.92268846 | H128: 18.08446823 | I128: 14.29957608 | J128: 1.314736909 | K128: 1.722252596 | L128: 1.068589053 | M128: 1.264597183
A129: ACTR10 | B129: NM_018477 | C129: 2407 | D129: 2.820091755 | E129: 2.148737096 | F129: 1.24403623 | G129: 1.754947092 | H129: 0 | I129: 1.659460737 | J129: 0.7616686314 | K129: 1.725843027 | L129: 0 | M129: 0
A130: ACTR1A | B130: NM_005736 | C130: 2830 | D130: 10.57070089 | E130: 20.41409019 | F130: 10.57032769 | G130: 4.804699593 | H130: 8.641524729 | I130: 2.819920371 | J130: 1.931012843 | K130: 1.931081014 | L130: 1.798182463 | M130: 3.063370671
A131: ACTR1B | B131: NM_005735 | C131: 2204 | D131: 5.379910404 | E131: 10.98091316 | F131: 8.51789288 | G131: 6.113300494 | H131: 8.55180615 | I131: 0 | J131: =E131/(D131+0.001) -> 2.040716595 | K131: =E131/(F131+0.001) -> 1.289007071 | L131: =H131/(G131+0.001) -> 1.398656503 | M131: =H131/(I131+0.001) -> 8551.80615
A132: ACTR2 | B132: NM_001005386 | C132: 3937 | D132: 6.171161 | E132: 3.87559508 | F132: 4.371028532 | G132: 5.239075093 | H132: 0.700674384 | I132: 2.057817146 | J132: 0.6279154222 | K132: 0.886452376 | L132: 0.1337145693 | M132: 0.3403286131
A133: ACTR3 | B133: NM_005721 | C133: 6589 | D133: 6.038437829 | E133: 4.545126475 | F133: 1.953447227 | G133: 3.924853806 | H133: 3.871570923 | I133: 5.33008489 | J133: 0.7525744289 | K133: 2.325530417 | L133: 0.9861729739 | M133: 0.7262257126
A134: ACTR3B | B134: NM_020445 | C134: 2213 | D134: 2.374430246 | E134: 1.075365684 | F134: 0.913154666 | G134: 2.791141781 | H134: 3.732771744 | I134: 0 | J134: 0.4527035411 | K134: 1.176349828 | L134: 1.336884742 | M134: 3732.771744
A135: ACTR3C | B135: NM_001164459 | C135: 1219 | D135: 0 | E135: 1.116610848 | F135: 0 | G135: 0 | H135: 0 | I135: 0 | J135: 1116.610848 | K135: 1116.610848 | L135: 0 | M135: 0
A136: ACTR5 | B136: NM_024855 | C136: 2546 | D136: 3.266855757 | E136: 5.193355423 | F136: 2.041705385 | G136: 3.264130058 | H136: 2.225512209 | I136: 0 | J136: 1.589224191 | K136: 2.542390822 | L136: 0.6815998657 | M136: 2225.512209
A137: ACTR6 | B137: NM_022496 | C137: 2465 | D137: 1.806985686 | E137: 1.354019828 | F137: 2.053242399 | G137: 0.193063888 | H137: 0 | I137: 0 | J137: 0.7489107013 | K137: 0.6591334249 | L137: 0 | M137: 0
A138: ACTR8 | B138: NM_022899 | C138: 3579 | D138: 2.343221219 | E138: 2.365024925 | F138: 4.463093905 | G138: 1.44276023 | H138: 0.760087741 | I138: 1.116228575 | J138: 1.008874464 | K138: 0.5297883457 | L138: 0.526463969 | M138: 0.6803332443
A139: ACTRT3 | B139: NM_032487 | C139: 1669 | D139: 0 | E139: 0 | F139: 0 | G139: 0.237589019 | H139: 0 | I139: 0 | J139: 0 | K139: 0 | L139: 0 | M139: 0
A140: ACVR1 | B140: NM_001347666 | C140: 3011 | D140: 2.443378449 | E140: 3.996157869 | F140: 1.357214339 | G140: 1.436117957 | H140: 3.699064272 | I140: 2.715953155 | J140: 1.634835993 | K140: 2.942214461 | L140: 2.573946177 | M140: 1.361475175
A141: ACVR1B | B141: NM_020328 | C141: 4654 | D141: 4.665240653 | E141: 5.086661888 | F141: 3.671539367 | G141: 2.742018153 | H141: 1.765641484 | I141: 4.321353709 | J141: 1.09009849 | K141: 1.38505306 | L141: 0.6436856723 | M141: 0.4084907444
A142: ACVR1C | B142: NM_145259 | C142: 8853 | D142: 0.593056315 | E142: 0.322256175 | F142: 0.456058167 | G142: 0.482623224 | H142: 0 | I142: 0 | J142: 0.5424673838 | K142: 0.7050660031 | L142: 0 | M142: 0
A143: ACVR2A | B143: NM_001616 | C143: 5214 | D143: 1.887213239 | E143: 2.044491076 | F143: 0.943497013 | G143: 1.508526039 | H143: 2.057100858 | I143: 0.755181307 | J143: 1.08276493 | K143: 2.164634772 | L143: 1.36274619 | M143: 2.720380468
A144: ACVR2B | B144: NM_001106 | C144: 11782 | D144: 3.738468251 | E144: 4.44405316 | F144: 3.471256802 | G144: 1.967061896 | H144: 1.940416301 | I144: 2.849407744 | J144: 1.188418476 | K144: 1.279874564 | L144: 0.9859528834 | M144: 0.6807504313
A145: ACY1 | B145: NM_001198895 | C145: 1417 | D145: 3.388554 | E145: 4.560174162 | F145: 3.025351208 | G145: 4.267697316 | H145: 4.946618762 | I145: 0 | J145: 1.345361119 | K145: 1.506822523 | L145: 1.158812255 | M145: 4946.618762
A146: ACYP1 | B146: NM_001302617 | C146: 790 | D146: 3.033127285 | E146: 1.190580198 | F146: 3.791293574 | G146: 1.188456039 | H146: 0 | I146: 0 | J146: 0.3923962597 | K146: 0.3139472656 | L146: 0 | M146: 0
A147: ACYP2 | B147: NM_001320586 | C147: 1260 | D147: 0.956454901 | E147: 0.375376321 | F147: 1.594069238 | G147: 2.248738094 | H147: 2.172084291 | I147: 0 | J147: 0.3920563993 | K147: 0.23533544 | L147: 0.9654831808 | M147: 2172.084291
A148: ADA | B148: NM_000022 | C148: 1496 | D148: 3.118782495 | E148: 1.836270981 | F148: 1.299413898 | G148: 2.749609323 | H148: 3.541174693 | I148: 0 | J148: 0.5885894238 | K148: 1.412066561 | L148: 1.287414633 | M148: 3541.174693
A149: ADAL | B149: NM_001324366 | C149: 4268 | D149: 0.53157114 | E149: 0.313010006 | F149: 1.107437983 | G149: 0.312405838 | H149: 0 | I149: 0 | J149: 0.5877336988 | K149: 0.2823883797 | L149: 0 | M149: 0
A150: ADAM10 | B150: NM_001110 | C150: 11158 | D150: 9.089629035 | E150: 8.903788548 | F150: 10.85886841 | G150: 6.14607391 | H150: 0.547951184 | I150: 10.4610954 | J150: 0.9794469133 | K150: 0.8198799665 | L150: 0.08914016523 | M150: 0.05237489844
A151: ADAM11 | B151: NM_002390 | C151: 4614 | D151: 0.915408246 | E151: 3.018511498 | F151: 3.204174926 | G151: 2.259978865 | H151: 2.494730952 | I151: 10.07443704 | J151: 3.293850215 | K151: 0.9417618594 | L151: 1.103385348 | M151: 0.2476052346
A152: ADAM17 | B152: NM_003183 | C152: 4391 | D152: 3.974401708 | E152: 3.918199976 | F152: 6.700697789 | G152: 3.911350283 | H152: 3.777946057 | I152: 0 | J152: 0.9856110813 | K152: 0.5846578135 | L152: 0.9656461676 | M152: 3777.946057
A153: ADAM19 | B153: NM_033274 | C153: 6481 | D153: 10.48148378 | E153: 19.13449296 | F153: 16.89987973 | G153: 9.137359804 | H153: 24.92815611 | I153: 0.620411554 | J153: 1.825377779 | K153: 1.132159584 | L153: 2.727858899 | M153: 40.11537273
A154: ADAM21 | B154: NM_003813 | C154: 2647 | D154: 0 | E154: 0.357881119 | F154: 0 | G154: 0.178611468 | H154: 0 | I154: 0 | J154: 357.881119 | K154: 357.881119 | L154: 0 | M154: 0
A155: ADAM22 | B155: NM_001324418 | C155: 9508 | D155: 2.021293324 | E155: 2.280993568 | F155: 1.789506257 | G155: 1.088967918 | H155: 0 | I155: 2.106270575 | J155: 1.127924194 | K155: 1.273937781 | L155: 0 | M155: 0
A156: ADAM9 | B156: NM_003816 | C156: 4111 | D156: 11.75859447 | E156: 12.68284275 | F156: 11.36292056 | G156: 7.898393289 | H156: 10.77038785 | I156: 10.87343409 | J156: 1.078510214 | K156: 1.11606225 | L156: 1.363444945 | M156: 0.9904320318
A157: ADAMTS14 | B157: NM_139155 | C157: 5564 | D157: 2.256039481 | E157: 4.713370487 | F157: 5.094168576 | G157: 4.106311963 | H157: 4.957896589 | I157: 0.728047386 | J157: 2.088297758 | K157: 0.9250666424 | L157: 1.207090339 | M157: 6.800513498
A158: ADAMTS16 | B158: NM_139056 | C158: 4979 | D158: 0.081330045 | E158: 0.4789878 | F158: 0 | G158: 0.382551167 | H158: 0 | I158: 0.813879175 | J158: 5.81789795 | K158: 478.9878 | L158: 0 | M158: 0
A159: ADAMTS17 | B159: NM_139057 | C159: 6329 | D159: 0.382056156 | E159: 1.724863713 | F159: 1.75131874 | G159: 1.347578639 | H159: 6.074212454 | I159: 0 | J159: 4.502900387 | K159: 0.9843321729 | L159: 4.504158881 | M159: 6074.212454
A160: ADAMTS7 | B160: NM_014272 | C160: 5520 | D160: 2.27325533 | E160: 5.181027198 | F160: 2.016439324 | G160: 2.413554071 | H160: 10.49077334 | I160: 5.135094446 | J160: 2.278120284 | K160: 2.568120457 | L160: 4.344807791 | M160: 2.042558495
A161: ADAMTSL5 | B161: NM_001367197 | C161: 2543 | D161: 2.97639131 | E161: 8.92898889 | F161: 5.137547749 | G161: 7.997151489 | H161: 13.51770433 | I161: 1.417747344 | J161: 2.998930258 | K161: 1.737648325 | L161: 1.690103563 | M161: 9.527915162
A162: ADAP1 | B162: NM_001284308 | C162: 2179 | D162: 2.787441007 | E162: 5.68947583 | F162: 6.503760959 | G162: 3.932007024 | H162: 20.25573346 | I162: 26.02662116 | J162: 2.040378769 | K162: 0.8746633221 | L162: 5.150190004 | M162: 0.7782399066
A163: ADAP2 | B163: NM_001346712 | C163: 2767 | D163: 1.609724284 | E163: 2.584848054 | F163: 0 | G163: 1.204149323 | H163: 0 | I163: 0 | J163: 1.604773753 | K163: 2584.848054 | L163: 0 | M163: 0
A164: ADAR | B164: NM_001365045 | C164: 6458 | D164: 17.66380029 | E164: 28.8769634 | F164: 19.57496719 | G164: 11.27376318 | H164: 13.23254541 | I164: 8.501292624 | J164: 1.634717796 | K164: 1.475123202 | L164: 1.173642869 | M164: 1.556350269
A165: ADARB1 | B165: NM_015833 | C165: 7022 | D165: 3.054074648 | E165: 5.089200051 | F165: 3.601394322 | G165: 2.438517341 | H165: 3.925628887 | I165: 3.458813447 | J165: 1.66581856 | K165: 1.412727091 | L165: 1.609182612 | M165: 1.134635999
A166: ADAT1 | B166: NM_012091 | C166: 4984 | D166: 1.776285502 | E166: 3.042533407 | F166: 1.412822747 | G166: 0.949115212 | H166: 8.250959087 | I166: 0.807718668 | J166: 1.711899075 | K166: 2.151990703 | L166: 8.684166912 | M166: 10.2025085
A167: ADAT2 | B167: NM_182503 | C167: 6244 | D167: 2.298867086 | E167: 1.372602814 | F167: 1.456894141 | G167: 1.255973656 | H167: 0.8822537 | I167: 0.647822351 | J167: 0.5968183215 | K167: 0.9414968998 | L167: 0.7018871842 | M167: 1.359776985
A168: ADAT3 | B168: NM_138422 | C168: 1599 | D168: 4.085583866 | E168: 10.69119987 | F168: 5.106743921 | G168: 6.13665794 | H168: 4.638841191 | I168: 2.27059692 | J168: 2.61617043 | K168: 2.09313545 | L168: 0.7557998892 | M168: 2.042105776
A169: ADCK1 | B169: NM_001366487 | C169: 3439 | D169: 1.268799589 | E169: 1.92093688 | F169: 1.359291001 | G169: 1.704509607 | H169: 0 | I169: 0 | J169: 1.512787448 | K169: 1.412151428 | L169: 0 | M169: 0
A170: ADCK2 | B170: NM_052853 | C170: 2574 | D170: 2.226781019 | E170: 5.2443 | F170: 2.56917767 | G170: 2.416181784 | H170: 2.333817151 | I170: 5.140631981 | J170: 2.35404645 | K170: 2.040442597 | L170: 0.9655116411 | M170: 0.4539059115
A171: ADCK5 | B171: NM_174922 | C171: 1956 | D171: 4.277417612 | E171: 6.476034713 | F171: 2.036744469 | G171: 4.549227529 | H171: 2.775227522 | I171: 8.150628234 | J171: 1.513651845 | K171: 3.178040629 | L171: 0.6099096154 | M171: 0.340450698
A172: ADCY3 | B172: NM_001377128 | C172: 5015 | D172: 5.476675348 | E172: 12.29350653 | F172: 10.05439242 | G172: 4.32536101 | H172: 21.56963182 | I172: 6.848407709 | J172: 2.244292651 | K172: 1.222578495 | L172: 4.985629209 | M172: 3.149123652
A173: ADCY6 | B173: NM_015270 | C173: 6090 | D173: 5.839734705 | E173: 11.64328331 | F173: 10.28547881 | G173: 4.836378129 | H173: 13.5623116 | I173: 15.26871389 | J173: 1.993462107 | K173: 1.131901745 | L173: 2.803649258 | M173: 0.8881837406
A174: ADCY7 | B174: NM_001114 | C174: 6270 | D174: 1.780610666 | E174: 3.261631346 | F174: 2.143231109 | G174: 1.705458503 | H174: 4.942082429 | I174: 0 | J174: 1.830720599 | K174: 1.52111931 | L174: 2.896104664 | M174: 4942.082429
A175: ADCY9 | B175: NM_001116 | C175: 7979 | D175: 1.886534782 | E175: 4.936728916 | F175: 2.620055902 | G175: 3.141649452 | H175: 11.06713961 | I175: 1.048462993 | J175: 2.615437322 | K175: 1.883488602 | L175: 3.521595322 | M175: 10.54552632
A176: ADD1 | B176: NM_014189 | C176: 4047 | D176: 8.50488382 | E176: 12.01784379 | F176: 9.004754875 | G176: 6.939351163 | H176: 7.497990868 | I176: 19.01810947 | J176: 1.412885956 | K176: 1.33446268 | L176: 1.080347477 | M176: 0.3942345923
A177: ADD3 | B177: NM_001320593 | C177: 4298 | D177: 6.08168947 | E177: 3.74107239 | F177: 1.361483034 | G177: 3.414347632 | H177: 1.236717695 | I177: 2.724121019 | J177: 0.6150358996 | K177: 2.745775394 | L177: 0.3621059489 | M177: 0.4538212015
A178: ADGRA2 | B178: NM_032777 | C178: 6944 | D178: 1.744737247 | E178: 5.610611449 | F178: 3.019698071 | G178: 3.392085066 | H178: 5.486064322 | I178: 3.35664593 | J178: 3.213892273 | K178: 1.857389026 | L178: 1.616836659 | M178: 1.633901977
A179: ADGRA3 | B179: NM_145290 | C179: 4577 | D179: 3.369217973 | E179: 6.264369968 | F179: 4.654608339 | G179: 2.605596071 | H179: 7.852202844 | I179: 0.886974634 | J179: 1.858743268 | K179: 1.345553473 | L179: 3.012435617 | M179: 8.842823368
A180: ADGRB1 | B180: NM_001702 | C180: 6020 | D180: 1.098676471 | E180: 2.328856089 | F180: 1.648062464 | G180: 1.549912513 | H180: 5.489214553 | I180: 12.45737669 | J180: 2.11776477 | K180: 1.412230367 | L180: 3.539345067 | M180: 0.440604317
A181: ADGRB2 | B181: NM_001364857 | C181: 5708 | D181: 2.902948329 | E181: 17.00452015 | F181: 6.140575755 | G181: 6.387458514 | H181: 37.52479589 | I181: 16.38217369 | J181: 5.855655206 | K181: 2.768755256 | L181: 5.873841993 | M181: 2.290447297
A182: ADGRE2 | B182: NM_013447 | C182: 6791 | D182: 1.064414387 | E182: 1.916948336 | F182: 0.312999193 | G182: 0.772839488 | H182: 0 | I182: 0.626364404 | J182: 1.799251408 | K182: 6.104946696 | L182: 0 | M182: 0
A183: ADGRE5 | B183: NM_078481 | C183: 3190 | D183: 6.029872308 | E183: 11.06041208 | F183: 7.537015942 | G183: 5.043456484 | H183: 18.16933545 | I183: 2.320019418 | J183: 1.833965555 | K183: 1.467284252 | L183: 3.601842043 | M183: 7.828170376
A184: ADGRF1 | B184: NM_153840 | C184: 5432 | D184: 0.962645822 | E184: 0.435929661 | F184: 2.221452065 | G184: 0.348171926 | H184: 0.504477996 | I184: 5.926615825 | J184: 0.4523753967 | K184: 0.19614806 | L184: 1.444783954 | M184: 0.085106392
A185: ADGRF3 | B185: NM_001321971 | C185: 4481 | D185: 0.628336084 | E185: 1.162660394 | F185: 2.019554318 | G185: 1.371738997 | H185: 4.280659924 | I185: 0 | J185: 1.847439585 | K185: 0.5754165496 | L185: 3.118334901 | M185: 4280.659924
A186: ADGRG1 | B186: NM_005682 | C186: 4311 | D186: 3.910796355 | E186: 5.227529988 | F186: 3.963541194 | G186: 5.715421003 | H186: 5.760512449 | I186: 5.286892119 | J186: 1.336350237 | K186: 1.318571237 | L186: 1.007713121 | M186: 1.089377831
A187: ADGRG5 | B187: NM_153837 | C187: 3806 | D187: 1.454781643 | E187: 2.569709719 | F187: 0.606154721 | G187: 0.997581912 | H187: 0.825864565 | I187: 1.212789338 | J187: 1.765175245 | K187: 4.232380364 | L187: 0.8270373768 | M187: 0.6804018944
A188: ADGRG6 | B188: NM_198569 | C188: 6822 | D188: 6.090085376 | E188: 5.447443766 | F188: 6.002016216 | G188: 3.992371423 | H188: 4.388145806 | I188: 2.928940587 | J188: 0.8943305552 | K188: 0.9074511162 | L188: 1.098857417 | M188: 1.497691054
A189: ADGRL1 | B189: NM_001008701 | C189: 7835 | D189: 8.915944017 | E189: 38.77988206 | F189: 19.00376963 | G189: 9.753777398 | H189: 50.5581837 | I189: 11.85814621 | J189: 4.349010377 | K189: 2.040534182 | L189: 5.182915164 | M189: 4.2632229
A190: ADGRV1 | B190: NM_032119 | C190: 19557 | D190: 0.481619736 | E190: 1.430346044 | F190: 0.575927744 | G190: 0.246202077 | H190: 0.142642461 | I190: 0 | J190: 2.963712292 | K190: 2.47924642 | L190: 0.577027761 | M190: 142.642461
A191: ADH5 | B191: NM_000671 | C191: 2651 | D191: 2.138411981 | E191: 0.719388187 | F191: 1.527385297 | G191: 0.359047737 | H191: 0 | I191: 0 | J191: 0.3362550988 | K191: 0.4706851004 | L191: 0 | M191: 0
A192: ADI1 | B192: NM_018269 | C192: 2181 | D192: 2.174455015 | E192: 0.569001972 | F192: 6.039857622 | G192: 1.135974778 | H192: 0 | I192: 2.416926277 | J192: 0.2615553841 | K192: 0.09419225011 | L192: 0 | M192: 0
A193: ADIPOR1 | B193: NM_001290553 | C193: 2046 | D193: 8.724534307 | E193: 12.06026739 | F193: 3.793024126 | G193: 5.127835257 | H193: 3.87617026 | I193: 9.486766158 | J193: 1.382180961 | K193: 3.178753479 | L193: 0.7557603366 | M193: 0.408544034
A194: ADIPOR2 | B194: NM_001375363 | C194: 4069 | D194: 9.804129172 | E194: 13.58923923 | F194: 6.893250555 | G194: 8.76356768 | H194: 4.174371129 | I194: 3.064956285 | J194: 1.385931689 | K194: 1.971097383 | L194: 0.4762780415 | M194: 1.361523369
A195: ADIRF | B195: NM_006829 | C195: 627 | D195: 28.92372879 | E195: 47.54089889 | F195: 7.531708915 | G195: 19.83317219 | H195: 41.05028244 | I195: 6.028021931 | J195: =E195/(D195+0.001) -> 1.643607421 | K195: =E195/(F195+0.001) -> 6.311261915 | L195: =H195/(G195+0.001) -> 2.069674602 | M195: =H195/(I195+0.001) -> 6.808779751
A196: ADK | B196: NM_006721 | C196: 1992 | D196: 3.967956366 | E196: 4.438795535 | F196: 0.991952472 | G196: 3.49821546 | H196: 0 | I196: 1.984721687 | J196: 1.118378517 | K196: 4.4703001 | L196: 0 | M196: 0
A197: ADM | B197: NM_001124 | C197: 1492 | D197: 7.130838572 | E197: 4.798217682 | F197: 0 | G197: 4.789882213 | H197: 5.204748692 | I197: 0 | J197: 0.6727883187 | K197: 4798.217682 | L197: 1.086386277 | M197: 5204.748692
A198: ADM2 | B198: NM_001253845 | C198: 4213 | D198: 0.836876836 | E198: 3.193010271 | F198: 1.004181707 | G198: 4.013831076 | H198: 2.736668695 | I198: 6.028021931 | J198: 3.810834879 | K198: 3.176550318 | L198: 0.6816398108 | M198: 0.4539158634
A199: ADNP | B199: NM_015339 | C199: 6588 | D199: 10.06999955 | E199: 11.85793946 | F199: 7.745835897 | G199: 6.449793697 | H199: 3.957761244 | I199: 10.97795506 | J199: 1.177434216 | K199: 1.530681638 | L199: 0.6135308971 | M199: 0.3604861503
A200: ADNP2 | B200: NM_014913 | C200: 5156 | D200: 6.314145835 | E200: 13.54273644 | F200: 3.852209008 | G200: 4.594701557 | H200: 6.144966643 | I200: 0.751928005 | J200: 2.144485146 | K200: 3.514664378 | L200: 1.33711177 | M200: 8.161426594
... 4300 more rows
